{"text_format":"1","workbook":"xlsx","n_sheets":24,"sheets":["Cover Page","Contents","Facility Info","Operational Data","Operational Summary","Perf. Form 1","Waste R1","Raw Materials WURM1","Energy Form 1","Permit Compliance","Improvements","Public Liasion","Residue Quality ","Water","Air (periodic)","Air (CEMS)","HCl","SO2","NOx","TOC","Particulates","CO 0.5hourly","CO 95% 10 min","NH3"],"not_rendered":{"charts":8,"images":3,"macros":1,"external_links":0,"defined_names":24,"comments":5,"pivot_tables":0},"unopened":[],"bounds":{"document_bytes":16777216,"sheet_cells":100000,"rows_first":2000,"rows_last":500,"rows_between":2000,"halvings":0,"cell_chars":16384,"cell_head_chars":4096},"cells_cut":0,"cells_raw":0,"read":"whole","date_system":"1900"}

{"sheet":"Cover Page","index":0,"n_rows":53,"n_cols":14,"rows_kept":53,"cut":false,"hidden":false,"merged":[[48,2,48,3],[48,6,48,8],[52,2,52,3],[36,1,36,8],[40,2,40,8],[42,2,42,4],[44,2,44,4],[46,2,46,3],[46,6,46,8],[13,13,18,15],[34,1,34,8],[0,3,5,6],[7,1,23,8],[28,1,28,8],[30,1,30,8],[32,1,32,8]]}
[null,null,null,"Add company logo"]
[null,null,null,null,null,null,null,null,null,null,null,null,null,"Version 20.6 "]
[]
[]
[]
[]
[]
[null,"Add photo"]
[]
[]
[]
[]
[null,null,null,null,null,null,null,null,null,null,null,null,null,"Notes:"]
[null,null,null,null,null,null,null,null,null,null,null,null,null,"This template may require adjustments by individual operators to meet specific reporting requirements as defined in the site Permit(s)"]
[]
[]
[]
[]
[]
[]
[]
[]
[]
[]
[]
[]
[]
[]
[null,"Annual Performance Report 2022"]
[]
[null,"Permit EPR/XP3730QZ"]
[]
[null,"Baddesley EfW Facility"]
[]
[]
[]
[null,"Equitix EEEF WTE Baddesley Limited"]
[]
[null,"Year:",2022]
[]
[null,"Address:","Merevale Lane, Atherstone, Warwickshire, CV9 2LA"]
[]
[null,"Tel: ","01827 946317"]
[]
[null,"Email: ","Gareth.cullen@kantorenergy.com"]
[]
[null,"Prepared by:","Tim Stocker",null,null,"Position:","Operations Manager"]
[]
[null,"Approved by:","Gareth Cullen",null,null,"Position:","Plant Manager "]
[]
[null,"Version:",1]
[]
[null,"Issue Date:","2023-01-31"]

{"sheet":"Contents","index":1,"n_rows":44,"n_cols":11,"rows_kept":44,"cut":false,"hidden":false,"merged":[[43,0,46,9],[36,1,36,6],[37,1,37,6],[38,1,38,6],[39,1,39,6],[40,1,40,6],[41,1,41,6],[35,1,35,6],[21,1,21,6],[22,1,22,6],[23,1,23,6],[26,1,26,6],[27,1,27,6],[28,1,28,6],[29,1,29,6],[30,1,30,6],[31,1,31,6],[34,1,34,6],[20,1,20,6],[9,1,9,6],[10,1,10,6],[11,1,11,6],[12,1,12,6],[13,1,13,6],[14,1,14,6],[15,1,15,6],[16,1,16,6],[17,1,17,6],[18,1,18,6],[19,1,19,6],[4,10,7,14],[8,1,8,6],[3,1,3,6],[4,1,4,6],[5,1,5,6],[6,1,6,6],[7,1,7,6]]}
[{"$f":"+'Cover Page'!$B$29","v":"Annual Performance Report 2022"},null,null,null,{"$f":"+'Cover Page'!$B$33","v":"Baddesley EfW Facility"}]
[]
["Contents",null,null,null,null,null,null,null,null,null,"Notes:"]
["Section","Subject",null,null,null,null,null,"Page ",null,null,"Section references and Page nos. to be inserted"]
[null,"Facility Information",null,null,null,null,null,3,null,null,"Sections and Subjects may require adjustment by individual operators to meet specific reporting requirements as defined in the sites Permit(s)"]
[null,"Operational Summary",null,null,null,null,null,4]
[null,"Operational Data",null,null,null,null,null,6]
[null,"Performance Form 1",null,null,null,null,null,7]
[null,"Energy Form 1",null,null,null,null,null,8]
[null,"Permit Compliance",null,null,null,null,null,9]
[null,"Improvements",null,null,null,null,null,10]
[null,"Public Liasion",null,null,null,null,null,11]
[null,"Residue Quality - Optional",null,null,null,null,null,12]
[null,"Emissions to Water",null,null,null,null,null,13]
[null,"Emissions to Air (periodically monitored)",null,null,null,null,null,14]
[null,"Emissions to Air (continuously monitored)",null,null,null,null,null,15]
[null,"Hydrogen Chloride emissions",null,null,null,null,null,16]
[null,"Sulphur Dioxdie emsissions",null,null,null,null,null,17]
[null,"Oxides of Notrigen emissions",null,null,null,null,null,18]
[null,"Total Organic Carbon emissions",null,null,null,null,null,19]
[null,"Particulate Matter emissions",null,null,null,null,null,20]
[null,"Carbon Monoxide emissions",null,null,null,null,null,21]
[null,"Ammonia emissions",null,null,null,null,null,23]
[]
[]
["Version Control"]
["Section","Information",null,null,null,null,null,"Date"]
[]
[]
[]
[]
[]
[]
["Distribution"]
["Copy","Name, Role",null,null,null,null,null,"No."]
[]
[]
[]
[]
[]
[]
[]
[]
["This report is required under the Industrial Emissions Directive’s Article 55(2) requirements on reporting and public information on waste incineration plants and co-incineration plants, which require the operator to produce an annual report on the functioning and monitoring of the plant and make it available to the public. "]

{"sheet":"Facility Info","index":2,"n_rows":22,"n_cols":11,"rows_kept":22,"cut":false,"hidden":false,"merged":[[4,0,17,8],[21,0,53,8],[4,10,13,13],[21,10,30,13]]}
[{"$f":"+'Cover Page'!$B$29","v":"Annual Performance Report 2022"},null,null,null,{"$f":"+'Cover Page'!$B$33","v":"Baddesley EfW Facility"}]
[]
["Plant Description and Design",null,null,null,null,null,null,null,null,null,"Notes:"]
[]
["The plant has been designed to generate around 10.4 MW of electricity, of which approx. 1.66 MW is consumed by the installation and the remaining 8.74 MW is exported to the national gird. There is 1 combustion line. \nAll RDF is delivered by road and weighed on entry to the site. Waste acceptance procedures is in place to ensure that only those materials which the EfW facility is designed to accept are accepted for treatment. \nThe site is located within the Merevale and Blyth Estate. The Site comprises 1.4 hectares of levelled land surrounded by a landscaped bund, located approximately 0.25 km to the east of the village of Baxterley and 0.8 km to the south east of the village of Baddesley Ensor.\n",null,null,null,null,null,null,null,null,null,"Include summary of plant design, design capacity, no. of combustion lines, electrical and heat capacity and any other general information that descibes the facility, its location and purpose "]
[]
[]
[]
[]
[]
[]
[]
[]
[]
[]
[]
[]
[]
[]
["Summary of Operational Processes and Procedures"]
[]
["The waste delivery vehicles transport the waste to the fuel hall and unload into the bunker.\nMoving grate technology is used for combusting the waste material. The grate is designed as a stepped grate and is longitudinally inclined. The grate bars are cooled by primary air.\nPrimary combustion air is fed into the furnace through the funnels on the underside of the grates which\nare equipped with flow regulators. \nSecondary air is injected at high velocity at the inlet of the first empty pass. This creates turbulence, which assists mixing of secondary air and combustion gases to achieve complete combustion of the gases. The volume of both primary and secondary air is regulated by the combustion control system.\nAn integrated furnace and boiler design is installed. Hot gases from the furnace section pass into the\nradiation and then into the convection boiler sections, in which steam is raised. Steam raised passes to a single turbine to generate electricity.\nThe EfW facility includes abatement to ensure that releases to air are controlled below the limits specified\nwithin the IED. The following flue gas treatment plant is provided:\n- Skimmer;\n- Hydrated lime and powdered activated carbon (PAC) injection;\n- Baghouse filter; and\n- Selective Catalytic Reduction (SCR).\nThe residues of the bag filter and the skimmer are collected and directed to separate residue silos. The residue silos are designed to discharge product via an enclosed loading chute. Boiler and economiser fly ash is discharged into a skip and bottom ash is transferred to an outdoor, covered IBA bay.\nClean flue gases exiting the abatement system are discharged through one 25 m stack.\t\t\t\t\t\t\t\n\t\t\t\t\t\t\t\t\n\t\t\t\t\t\t\t\t\n\t\t\t\t\t\t\t\t\n\t\t\t\t\t\t\t\t\n\t\t\t\t\t\t\t\t\n\t\t\t\t\t\t\t\t\n\t\t\t\t\t\t\t\t\n\t\t\t\t\t\t\t\t\n\t\t\t\t\t\t\t\t\n\t\t\t\t\t\t\t\t\n\t\t\t\t\t\t\t\t\n\t\t\t\t\t\t\t\t\n\t\t\t\t\t\t\t\t\n\t\t\t\t\t\t\t\t\n\t\t\t\t\t\t\t\t\n\t\t\t\t\t\t\t\t\n\t\t\t\t\t\t\t\t\n\t\t\t\t\t\t\t\t\n\t\t\t\t\t\t\t\t\n\t\t\t\t\t\t\t\t\n\t\t\t\t\t\t\t\t\n\t\t\t\t\t\t\t\t\n\t\t\t\t\t\t\t\t\n\t\t\t\t\t\t\t\t\n\t\t\t\t\t\t\t\t\n\t\t\t\t\t\t\t\t\n\t\t\t\t\t\t\t\t\n\t\t\t\t\t\t\t\t\n\t\t\t\t\t\t\t\t\n\t\t\t\t\t\t\t\t\n\t\t\t\t\t\t\t\t\n\t\t\t\t\t\t\t\t",null,null,null,null,null,null,null,null,null,"Include summary of key processes and procedures such as (but not limited to); waste reception, control rooms, grate, bed and bolier, energy & heat  generation, cooling systems, residue management, emission controls, health and safety systems, maintenance"]

{"sheet":"Operational Data","index":3,"n_rows":62,"n_cols":11,"rows_kept":62,"cut":false,"hidden":false,"merged":[[5,10,6,10],[30,1,35,1],[27,2,27,5],[27,6,27,7],[7,10,20,10],[3,1,3,2],[7,1,16,1],[20,1,23,1],[25,1,26,1],[49,0,53,0]]}
[{"$f":"+'Cover Page'!$B$29","v":"Annual Performance Report 2022"},null,null,null,{"$f":"+'Cover Page'!$B$33","v":"Baddesley EfW Facility"}]
[]
["Operational Data",null,null,null,null,null,null,null,null,null,"Notes:"]
["Plant Size",130000,null,"tonnes pa",null,null,10,"MWe",null,null,"* - RDF to include SRF "]
["No. of combustion lines",1,null,"No. of Turbines:",null,1,null,null,null,null,"** - CHP plants only"]
[null,null,null,null,null,null,null,null,null,null,"2020 updates include;  heat in MWh, water in Litres, NCV in MJ/kg"]
["Waste types received","Unit","Q1","Q2","Q3","Q4","Year Total","%"]
["Household / Local Authority","tonnes",null,null,null,0,{"$f":"SUM(C8:F8)","v":0},{"$f":"IF(G8>0,G8/$G$15,\"-\")","v":"-"},null,null,"Availabiity Definition: 'the availability of a line is to be calculated by the number of hours the line reported Continuously Monitored emission levels to the Regulator through the calendar year divided by the total number of hours in that year. \nThe overall plant availability is calculated as the Mean of all lines in the plant. For clarity this includes periods of Other Than Normal Operating Conditions (OTNOC) and abnormal operation.'  \n\nRationale: The primary function of an Energy from Waste facility is the disposal of waste. It follows therefore that the availability of a plant is determined by the period of time a facility spends undertaking this activity."]
["Commercial & Industrial ",null,null,null,null,0,{"$f":"SUM(C9:F9)","v":0},"-"]
["Hazardous ",null,null,null,null,0,0,"-"]
["Clinical",null,null,null,null,0,0,"-"]
["Waste wood (biomass) ",null,null,null,null,0,0,"-"]
["Refuse Derived Fuel * - H'hold/LA",null,null,null,null,0,{"$f":"SUM(C13:F13)","v":0},"-"]
["Refuse Derived Fuel *  - C&I",null,19124.22,18679.770000000008,22317.149999999987,13869.42,73990.559999999998,1]
["Total waste received",null,{"$f":"SUM(C8:C14)","v":19124.22},{"$f":"SUM(D8:D14)","v":18679.770000000008},{"$f":"SUM(E8:E14)","v":22317.149999999987},{"$f":"SUM(F8:F14)","v":13869.42},{"$f":"SUM(G8:G14)","v":73990.559999999998},1]
["Rejected Waste ",null,null,null,null,0,{"$f":"SUM(C16:F16)","v":0},{"$f":"IF(G16>0,G16/$G$15,\"-\")","v":"-"}]
["Unprocessed waste transferred out",null,null,null,null,0,{"$f":"SUM(C17:F17)","v":0},{"$f":"IF(G17>0,G17/$G$15,\"-\")","v":"-"}]
["Total waste combusted",null,{"$f":"C15-SUM(C16:C17)","v":19124.22},{"$f":"D15-SUM(D16:D17)","v":18679.770000000008},22317.149999999987,13869.42,{"$f":"SUM(C18:F18)","v":73990.559999999998},{"$f":"IF(G18>0,G18/$G$15,\"-\")","v":1}]
[]
["Energy Useage / Export","Unit","Q1","Q2","Q3","Q4","Year Total","KWh/te"]
["Power Generated","MWh",{"$f":"16331609/1000","v":16331.609},14942,19261,11865,{"$f":"SUM(C21:F21)","v":62399.608999999997},{"$f":"IF(G21>0,G21*1000/$G$18,\"-\")","v":843.34554299899878}]
["Power Exported",null,14256.861000000001,13094.519,16790.253000000001,10259.245999999999,{"$f":"SUM(C22:F22)","v":54400.879000000001},{"$f":"IF(G22>0,G22*1000/$G$18,\"-\")","v":735.24080639476176}]
["Power Used on site",null,2158,1939,2480,1858,{"$f":"SUM(C23:F23)","v":8435},{"$f":"IF(G23>0,G23*1000/$G$18,\"-\")","v":114.00102932049711}]
["Power Imported",null,172.65299999999999,190.24199999999999,140.79400000000001,317.04700000000003,820.73599999999999,{"$f":"IF(G24>0,G24*1000/$G$18,\"-\")","v":11.092442062879373}]
["Parasitic Load","%",{"$f":"IF(C21>0,1-C22/(C21+C24),\"-\")","v":0.1361709478436538},{"$f":"IF(D21>0,1-D22/(D21+D24),\"-\")","v":0.13466101057596092},{"$f":"IF(E21>0,1-E22/(E21+E24),\"-\")","v":0.13460306814926504},{"$f":"IF(F21>0,1-F22/(F21+F24),\"-\")","v":0.15783890835423642},{"$f":"IF(G21>0,1-G22/(G21+G24),\"-\")","v":0.13950360441721721}]
["Thermal Energy Produced **","MWh",null,null,null,0,{"$f":"SUM(C26:F26)","v":0},{"$f":"IF(G26>0,G26*1000/$G$18,\"-\")","v":"-"}]
["Thermal Energy Exported **",null,null,null,null,0,0,{"$f":"IF(G27>0,G27*1000/$G$18,\"-\")","v":"-"}]
["R1 value",null,null,null,null,null,"Design / Operational / n/a"]
[]
["Waste Disposal & Recovery","Unit","Q1","Q2","Q3","Q4","Year Total","% inputs"]
["APC Residues - produced","tonnes",804,787.4,827.96,570.44000000000005,{"$f":"SUM(C31:F31)","v":2989.8},{"$f":"IF(G31>0,G31/$G$18,\"-\")","v":4.0407857434786282E-2}]
["IBA - produced",null,3367,3982.34,4534.26,2692.82,14576.42,{"$f":"IF(G32>0,G32/$G$18,\"-\")","v":0.19700377994165744}]
["Skimmer - produced ",null,77,102.96,130.34,101.28,{"$f":"SUM(C33:F33)","v":411.57999999999993},5.5626014994345219E-3]
["Fly - produced",null,347,330.2,426.4,315.45999999999998,{"$f":"SUM(C34:F34)","v":1419.06},1.9178933096330127E-2]
[null,null,0,0,0,0,0,"-"]
[null,null,0,0,0,0,0,"-"]
[]
["Raw Material Usage","Unit","Q1","Q2","Q3","Q4","Year Total","kg or Ltr /te"]
["Mains Water","m3",23187,37892,57735,19073,{"$f":"SUM(C39:F39)","v":137887},{"$f":"IF(G39>0,G39/$G$18,\"-\")","v":1.8635755696402352}]
["Other Water","m3",null,null,null,null,0,{"$f":"IF(G40>0,G40/$G$18,\"-\")","v":"-"}]
["Ammonia","Tonnes",51,77,26,51,205,{"$f":"IF(G41>0,G41/$G$18,\"-\")*1000","v":2.770623711997855}]
["Urea","kgs",null,null,null,null,{"$f":"SUM(C42:F42)","v":0},"-"]
["Activated Carbon","kgs",10966,10336,12330,8985,42617,0.57597888163030531]
["Lime / hydrated lime","kgs",358000,365000,400000,285000,1408000,19.029454568258437]
["Fuel oil","ltrs",172766,215778,157539,232127,778210,10.517693067872443]
["Gas","cf",0,0,0,0,0]
["Other",null,0,0,0,0,0]
[]
["Summary ","Line/Unit","Q1","Q2","Q3","Q4","Year Total",null,null,"Hrs in year "]
["Availability of waste combustion by line, hrs",{"$f":"+B5","v":1},1600.25,1435.15,1852.96,1224.55,{"$f":"SUM(C50:F50)","v":6112.9100000000008},{"$f":"G50/J50","v":0.69782077625570782},null,8760]
[null,2,null,null,null,0,0,"x %"]
[null,3,null,null,null,0,0,"x %"]
[null,4,null,null,null,0,0,"x %"]
[null,5,null,null,null,0,{"$f":"SUM(C54:F54)","v":0},"x %"]
["Overall Availability, mean avg. of all lines, hrs",null,null,null,null,null,0,"x %"]
["Hours of turbine operations, hrs",1,1645,1602,1914,1321,6482,{"$f":"G56/J50","v":0.73995433789954335}]
["Hours of turbine operations, hrs",2,null,null,null,0,0,"x %"]
["Hours of heat / steam export",null,null,null,null,0,0,{"$f":"IF(B58>0,G57/J50,\"n/a\")","v":"n/a"}]
["Net Calorific Value of waste","MJ/kg",null,null,null,null,null,"-"]
["Abnormal Events","qty.",7,0,1,2,10,{"$f":"IF(G60>0,\"yes\",\"no\")","v":"yes"}]
["Abnormal operation","hours",6.5,0,0.3,2.1,8.9,{"$f":"+(G61)/J50","v":1.0159817351598174E-3}]
["Permit Breaches","qty.",1,5,2,5,13,{"$f":"IF(G62>0,\"yes\",\"no\")","v":"yes"}]

{"sheet":"Operational Summary","index":4,"n_rows":31,"n_cols":11,"rows_kept":31,"cut":false,"hidden":false,"merged":[[4,0,26,8],[30,0,51,8],[4,10,13,13],[30,10,39,13]]}
[{"$f":"+'Cover Page'!$B$29","v":"Annual Performance Report 2022"},null,null,null,{"$f":"+'Cover Page'!$B$33","v":"Baddesley EfW Facility"}]
[]
["Summary of Plant Operations and Maintenance during the reporting year",null,null,null,null,null,null,null,null,null,"Notes:"]
[]
["Plant is in first full year of operation with reporting period from 01/01/2022 to 31/12/2022. Annual maintenance and inspection outage from 11th November - 26th November. General maintenance carried out as required including incline feeding conveyor replacement and furnace grate repairs.\n",null,null,null,null,null,null,null,null,null,"Include summary of key operational and/or mainteanance activity undertaken in the year, such as any major component upgrades and/or replacements "]
[]
[]
[]
[]
[]
[]
[]
[]
[]
[]
[]
[]
[]
[]
[]
[]
[]
[]
[]
[]
[]
[]
[]
["Summary of Residue Handling for the reporting year"]
[]
["EWC 19 01 15* - Boiler dust containing hazardous substances (Boiler/Econ Ash)– transported in sealed Ro-Ro skips to Augean Plc at Kings Cliffe facility near Peterborough.\nEWC 19 01 07 * - Solid wastes from gas treatment (APCr) - transported in sealed powder tankers to Augean Plc at Kings Cliffe facility near Peterborough.\nEWC 19 01 12 - Bottom ash and slag (IBA) – transported in opened sheeted high-sided trailers to Johnson Aggregates at Nottingham. The same vehicles that deliver RDF are utilised for the removal of the IBA residues to save on haulier costs and carbon footprint. \nEWC 19 01 13* - Fly ash containing hazardous substances (Skimmer Residue) - transported in sealed powder tankers to Augean Plc at Kings Cliffe facility near Peterborough.",null,null,null,null,null,null,null,null,null,"Include in here a summary of residue handling regimes and destinations "]

{"sheet":"Perf. Form 1","index":5,"n_rows":51,"n_cols":10,"rows_kept":51,"cut":false,"hidden":false,"merged":[[43,0,43,1],[45,0,45,9],[46,0,47,9],[34,0,34,9],[35,0,36,9],[39,0,39,1],[39,2,39,9],[41,0,41,1],[42,0,42,1],[30,0,30,3],[30,4,30,5],[30,7,30,8],[31,0,31,3],[31,4,31,5],[31,7,31,8],[32,0,32,3],[32,4,32,5],[32,7,32,8],[33,0,33,3],[33,4,33,5],[33,7,33,8],[28,0,28,3],[28,4,28,5],[28,7,28,8],[29,0,29,3],[29,4,29,5],[29,7,29,8],[18,0,18,3],[18,4,18,5],[18,6,18,7],[18,8,18,9],[27,0,27,3],[27,7,27,8],[19,0,19,3],[19,4,19,5],[19,6,19,7],[19,8,19,9],[21,0,21,9],[22,0,24,9],[17,0,17,1],[17,2,17,3],[17,4,17,5],[17,6,17,7],[17,8,17,9],[16,0,16,9],[13,0,13,1],[13,2,13,3],[13,4,13,5],[13,6,13,7],[13,8,13,9],[14,0,14,3],[14,4,14,5],[14,6,14,7],[14,8,14,9],[15,0,15,1],[15,2,15,3],[15,4,15,5],[15,6,15,7],[15,8,15,9],[12,0,12,1],[12,2,12,3],[12,4,12,5],[12,6,12,7],[12,8,12,9],[11,0,11,1],[11,2,11,3],[11,4,11,5],[11,6,11,7],[11,8,11,9],[8,0,8,1],[8,2,8,3],[8,4,8,5],[8,6,8,7],[8,8,8,9],[2,0,2,4],[2,6,2,8],[3,1,3,4],[5,3,5,4],[5,6,5,7],[9,0,9,9],[10,0,10,1],[10,2,10,3],[10,4,10,5],[10,6,10,7],[10,8,10,9]]}
[2022," Annual Reporting Performance Form 1"]
[]
[{"$f":"+'Cover Page'!B31","v":"Permit EPR/XP3730QZ"},null,null,null,null,"Operator: "," Equitix EEEF WTE Baddesley Limited"]
["Facility:",{"$f":"+'Cover Page'!B33:I33","v":"Baddesley EfW Facility"},null,null,null,"Form:","Performance 1"]
[]
["Reporting  Period from: ",null,null,"2022-01-01",null,"to:","2022-12-31"]
[]
[{"$f":"+A1","v":2022},"Annual Reporting of Waste Disposal and Recovery"]
["Waste Description",null,"Disposal Route(s)",null,"Disposal Tonnes",null,"Recovery Tonnes",null,"Tonnes / tonne of waste incinerated"]
["1) Hazardous Wastes"]
["APC Residues",null,"Treatment and disposal into landfill",null,{"$f":"'Operational Data'!G31","v":2989.8},null,null,null,{"$f":"IF((E11+G11)>0,(E11+G11)/'Operational Data'!$G$18, \"-\")","v":4.0407857434786282E-2}]
["Fly ",null,"Treatment and disposal into landfill",null,{"$f":"'Operational Data'!G34","v":1419.06},null,null,null,{"$f":"IF((E12+G12)>0,(E12+G12)/'Operational Data'!$G$18, \"-\")","v":1.9178933096330127E-2}]
["Skimmer",null,"Treatment and disposal into landfill",null,{"$f":"'Operational Data'!G33","v":411.57999999999993},null,null,null,{"$f":"IF((E13+G13)>0,(E13+G13)/'Operational Data'!$G$18, \"-\")","v":5.5626014994345219E-3}]
[null,null,null,null,null,null,null,null,{"$f":"IF((E14+G14)>0,(E14+G14)/'Operational Data'!$G$18, \"-\")","v":"-"}]
["Total Hazardous Waste",null,null,null,{"$f":"SUM(E11:F14)","v":4820.4400000000005},null,{"$f":"SUM(G11:H14)","v":0},null,{"$f":"IF((E15+G15)>0,(E15+G15)/'Operational Data'!$G$18, \"-\")","v":6.5149392030550937E-2}]
[]
["2) Non-Hazardous Wastes"]
["IBA",null,"Sent for recovery for secondary aggregate",null,null,null,{"$f":"'Operational Data'!G32","v":14576.42},null,{"$f":"IF((E18+G18)>0,(E18+G18)/'Operational Data'!$G$18, \"-\")","v":0.19700377994165744}]
["Total Non-Hazardous Waste",null,null,null,{"$f":"SUM(E18:F18)","v":0},null,{"$f":"SUM(G18:H18)","v":14576.42},null,{"$f":"IF((E19+G19)>0,(E19+G19)/'Operational Data'!$G$18, \"-\")","v":0.19700377994165744}]
["TOTAL WASTE",null,null,null,{"$f":"+E19+E15","v":4820.4400000000005},null,{"$f":"+G19+G15","v":14576.42},null,{"$f":"IF((E20+G20)>0,(E20+G20)/'Operational Data'!$G$18, \"-\")","v":0.26215317197220839}]
[]
["Operator’s comments :"]
[]
[]
[]
[]
[{"$f":"+A1","v":2022},"Annual Reporting of Water and Other Raw Material Usage"]
["Raw Material",null,null,null,"Usage",null,"Unit","Specific Useage",null,"Unit"]
["Mains Water",null,null,null,{"$f":"'Operational Data'!G39","v":137887},null,"m3",{"$f":"IF(E29>0,E29/'Operational Data'!$G$18,\"-\")","v":1.8635755696402352},null,"m3/te"]
["Total Water",null,null,null,{"$f":"E29","v":137887},null,"m3",{"$f":"IF(E30>0,E30/'Operational Data'!$G$18,\"-\")","v":1.8635755696402352},null,"m3/te"]
["Ammonia",null,null,null,{"$f":"'Operational Data'!G41/1000","v":0.20499999999999999},null,"m3",{"$f":"IF(E31>0,E31*1000/'Operational Data'!$G$18,\"-\")","v":2.770623711997855E-3},null,"ltr/te"]
["Activated Carbon",null,null,null,{"$f":"'Operational Data'!G43/1000","v":42.616999999999997},null,"Tonnes",{"$f":"IF(E32>0,E32*1000/'Operational Data'!$G$18,\"-\")","v":0.57597888163030531},null,"kg/te"]
["Lime ",null,null,null,{"$f":"'Operational Data'!F44/1000","v":285},null,"Tonnes",{"$f":"IF(E33>0,E33*1000/'Operational Data'!$G$18,\"-\")","v":3.8518427215579933},null,"kg/te"]
[]
["Operator’s comments :"]
[]
[]
[]
[{"$f":"+A27","v":2022},"Annual Reporting of other performance indicators "]
["Parameter",null,"Results by Line"]
[null,null,"A1","A2","A3","A4","A5",null,"Turbine 1","Turbine 2"]
["Operating hours for the year, hours",null,{"$f":"'Operational Data'!G50","v":6112.9100000000008},null,null,null,null,null,{"$f":"'Operational Data'!G56","v":6482}]
["Number of periods of abnormal operation, qty.",null,{"$f":"'Operational Data'!G60","v":10},null,null,null,null,null,{"$f":"C43","v":10}]
["Cumulative hours of abnormal operation for this year, hours",null,{"$f":"'Operational Data'!G61","v":8.9},null,null,null,null,null,8.9]
[]
["Operator’s comments :"]
[]
[]
[]
["Signed: ",null,null,null,"T. Stocker",null,"Date:","2023-01-27"]
[null,null,null,null,"Baddesley Operations Manager "]

{"sheet":"Waste R1","index":6,"n_rows":30,"n_cols":9,"rows_kept":30,"cut":false,"hidden":false,"merged":[[2,6,2,8],[4,1,4,4],[6,3,6,4],[6,6,6,7],[8,0,8,2],[8,5,8,6],[8,8,8,10],[8,3,8,4],[11,0,11,2],[11,3,11,4],[11,8,11,10],[11,5,11,6],[9,0,9,2],[9,5,9,6],[9,8,9,10],[10,0,10,2],[10,5,10,6],[10,8,10,10],[9,3,9,4],[10,3,10,4],[12,0,12,2],[12,5,12,6],[12,8,12,10],[13,0,13,2],[13,5,13,6],[13,8,13,10],[12,3,12,4],[13,3,13,4],[17,0,17,8],[18,0,24,8],[14,0,14,2],[14,5,14,6],[14,8,14,10],[15,0,15,2],[15,8,15,10],[15,5,15,6],[14,3,14,4]]}
[2022," Annual Reporting of Waste disposal and Recovery"]
[]
[{"$f":"+'Cover Page'!B31","v":"Permit EPR/XP3730QZ"},null,null,null,null,"Operator: ","Equitix EEEF WTE Baddesley Limited"]
[]
["Facility:",{"$f":"+'Cover Page'!B33:I33","v":"Baddesley EfW Facility"},null,null,null,"Form:","R1 (Waste)"]
[]
["Reporting  Period from: ",null,null,"2022-01-01",null,"to:","2022-12-31"]
[]
["Waste description",null,null,"Disposal Route",null,"Tonnes",null,"Units","Tonnes/tonne waste incinerated"]
["1) Hazardous Waste"]
["APC Residues",null,null,"Treatment and disposal into landfill",null,{"$f":"'Operational Data'!G31","v":2989.8},null,"Tonnes",{"$f":"F11/'Operational Data'!$G$18","v":4.0407857434786282E-2}]
["Boiler and Economiser (fly) ash",null,null,"Treatment and disposal into landfill",null,{"$f":"'Operational Data'!G34","v":1419.06},null,"Tonnes",{"$f":"F12/'Operational Data'!$G$18","v":1.9178933096330127E-2}]
["Skimmer ash",null,null,"Treatment and disposal into landfill",null,{"$f":"'Operational Data'!G33","v":411.57999999999993},null,"Tonnes",{"$f":"F13/'Operational Data'!$G$18","v":5.5626014994345219E-3}]
["Total Hazardous waste",null,null,null,null,{"$f":"SUM(F11:G13)","v":4820.4400000000005},null,"Tonnes",{"$f":"F14/'Operational Data'!$G$18","v":6.5149392030550937E-2}]
["IBA (non-hazardous)",null,null,"Sent for recovery for secondary aggregate",null,{"$f":"'Operational Data'!G32","v":14576.42},null,"Tonnes",{"$f":"F15/'Operational Data'!$G$18","v":0.19700377994165744}]
["Total non-hazardous waste",null,null,null,null,{"$f":"F15","v":14576.42},null,"Tonnes",{"$f":"F16/'Operational Data'!$G$18","v":0.19700377994165744}]
[]
["Operator’s comments :"]
[]
[]
[]
[]
[]
[]
[]
[]
[]
[]
["Signed: ",null,null,null,"T Stocker",null,"Date:","2023-01-27"]
[null,null,null,null,"Baddesley Operations Manager. "]

{"sheet":"Raw Materials WURM1","index":7,"n_rows":29,"n_cols":9,"rows_kept":29,"cut":false,"hidden":false,"merged":[[2,6,2,8],[4,1,4,4],[6,3,6,4],[8,0,8,2],[8,3,8,4],[8,5,8,6],[8,8,8,10],[6,6,6,8],[9,0,9,2],[9,3,9,4],[9,5,9,6],[9,8,9,10],[10,0,10,2],[10,3,10,4],[10,5,10,6],[10,8,10,10],[11,0,11,2],[11,3,11,4],[11,5,11,6],[11,8,11,10],[12,0,12,2],[12,3,12,4],[12,5,12,6],[12,8,12,10],[16,0,16,8],[17,0,23,8],[13,0,13,2],[13,3,13,4],[13,5,13,6],[13,8,13,10],[14,0,14,2],[14,3,14,4],[14,5,14,6],[14,8,14,10]]}
[2022," Annual Reporting of Water and Other Raw Material Usage"]
[]
[{"$f":"+'Cover Page'!B31","v":"Permit EPR/XP3730QZ"},null,null,null,null,"Operator: ","Equitix EEEF WTE Baddesley Limited"]
[]
["Facility:",{"$f":"+'Cover Page'!B33:I33","v":"Baddesley EfW Facility"},null,null,null,"Form:","WURM 1"]
[]
["Reporting  Period from: ",null,null,"2022-01-01",null,"to:","2022-12-31"]
[]
["Raw Material",null,null,"Usage",null,"Units",null,"Specific Usage","Units"]
["Total RDF Incinerated",null,null,{"$f":"'Operational Data'!G18","v":73990.559999999998},null,"Tonnes",null,"NA","m3/tonne waste input"]
["Mains Water",null,null,{"$f":"'Operational Data'!G39","v":137887},null,"m3",null,{"$f":"D11/$D$10","v":1.8635755696402352},"m3/tonne waste input"]
["Total Water Usage",null,null,{"$f":"D11","v":137887},null,"m3",null,{"$f":"D12/$D$10","v":1.8635755696402352},"m3/tonne waste input"]
["Ammonia",null,null,{"$f":"'Operational Data'!G41","v":205},null,"Tonnes",null,2.770623711997855E-3,"tonne/tonne waste input"]
["Activated Carbon",null,null,{"$f":"'Operational Data'!G43","v":42617},null,"Kg",null,0.57597888163030531,"kg/tonne waste input"]
["Hydrated Lime",null,null,{"$f":"'Operational Data'!G44","v":1408000},null,"Kg",null,19.029454568258437,"kg/tonne waste input"]
[]
["Operator’s comments : "]
[]
[]
[]
[]
[]
[]
[]
[]
[]
[]
["Signed: ",null,null,null,"T Stocker",null,"Date:","2023-01-27"]
[null,null,null,null,"Baddesley Operations Manager. "]

{"sheet":"Energy Form 1","index":8,"n_rows":28,"n_cols":8,"rows_kept":28,"cut":false,"hidden":false,"merged":[[13,0,13,2],[13,3,13,4],[13,6,13,8],[15,0,15,8],[16,0,22,8],[11,0,11,2],[11,3,11,4],[11,6,11,8],[12,0,12,2],[12,3,12,4],[12,6,12,8],[9,0,9,2],[9,3,9,4],[9,6,9,8],[10,0,10,2],[10,3,10,4],[10,6,10,8],[2,6,2,8],[4,1,4,4],[6,3,6,4],[6,6,6,7],[8,0,8,2],[8,3,8,4],[8,6,8,8]]}
[{"$f":"+'Cover Page'!C39","v":2022}," Annual Reporting of Energy Usage/Export"]
[]
[{"$f":"+'Cover Page'!B31","v":"Permit EPR/XP3730QZ"},null,null,null,null,"Operator: ","Equitix EEEF WTE Baddesley Limited"]
[]
["Facility:",{"$f":"+'Cover Page'!B33:I33","v":"Baddesley EfW Facility"},null,null,null,"Form:","Energy 1"]
[]
["Reporting  Period from: ",null,null,"2022-01-01",null,"to:","2022-12-31"]
[]
["Energy Source",null,null,"Energy Usage",null,"Unit","Primary Energy note 1 (MWh)"]
["Electricity Produced",null,null,{"$f":"'Operational Data'!G21","v":62399.608999999997},null,"MWh"]
["Electricity Imported   ",null,null,{"$f":"'Operational Data'!G24","v":820.73599999999999},null,"MWh",{"$f":"D11*2.1","v":1723.5456000000001}]
["Electricity Exported",null,null,{"$f":"'Operational Data'!G22","v":54400.879000000001},null,"MWh"]
["Gas Oil",null,null,{"$f":"'Operational Data'!G45/1000","v":778.21},null,"m3"]
["Steam/hot water exported",null,null,{"$f":"+'Operational Data'!G27","v":0},null,"GWh",{"$f":"IF(D14>0,D14*1000/'Operational Data'!$G$18,\"-\")","v":"-"}]
["Note 1: Conversion factor for imported electricty to primary energy =2.1"]
["Operator’s comments :"]
[]
[]
[]
[]
[]
[]
[]
[]
[]
[]
["Signed: ",null,null,null,"T Stocker",null,"Date:","2023-01-27"]
[null,null,null,null,"Baddesley Operations Manager. "]

{"sheet":"Permit Compliance","index":9,"n_rows":42,"n_cols":12,"rows_kept":42,"cut":false,"hidden":false,"merged":[[24,1,24,3],[24,4,24,6],[24,7,24,8],[31,1,31,3],[31,4,31,6],[31,7,31,8],[27,1,27,3],[27,4,27,6],[27,7,27,8],[28,4,28,6],[28,7,28,8],[25,1,25,3],[25,4,25,6],[25,7,25,8],[26,1,26,3],[26,4,26,6],[32,1,32,3],[32,4,32,6],[32,7,32,8],[29,4,29,6],[29,7,29,8],[30,1,30,3],[30,4,30,6],[30,7,30,8],[26,7,26,8],[21,4,21,6],[21,7,21,8],[22,4,22,6],[22,7,22,8],[23,4,23,6],[23,7,23,8],[34,0,34,10],[18,0,18,10],[39,1,39,3],[39,4,39,6],[39,7,39,9],[35,1,35,3],[35,4,35,6],[35,7,35,9],[36,1,36,3],[36,4,36,6],[36,7,36,9],[21,1,21,3],[28,1,28,3],[29,1,29,3],[22,1,22,3],[23,1,23,3],[40,1,40,3],[40,4,40,6],[40,7,40,9],[37,1,37,3],[37,4,37,6],[37,7,37,9],[38,1,38,3],[38,4,38,6],[38,7,38,9],[19,1,19,3],[19,4,19,6],[19,7,19,9],[20,1,20,3],[20,4,20,6],[20,7,20,8],[16,2,16,4],[16,5,16,8],[15,2,15,4],[15,5,15,8],[16,0,16,1],[13,5,13,8],[14,0,14,1],[14,2,14,4],[14,5,14,8],[15,0,15,1],[7,0,7,1],[7,2,7,8],[8,0,8,1],[8,2,8,4],[8,5,8,8],[8,11,17,14],[41,4,41,8],[9,0,9,1],[9,2,9,4],[9,5,9,8],[10,0,10,1],[10,2,10,4],[10,5,10,8],[11,0,11,1],[11,2,11,4],[11,5,11,8],[12,0,12,1],[12,2,12,4],[12,5,12,8],[13,0,13,1],[13,2,13,4]]}
[{"$f":"+'Cover Page'!$B$29","v":"Annual Performance Report 2022"},null,null,null,{"$f":"+'Cover Page'!$B$33","v":"Baddesley EfW Facility"}]
[]
["Summary of Permit Compliance"]
[]
["Compliance with permit limits for continuously monitored pollutants"]
[]
["The plant met its emission limits as shown in the table below:"]
["Substance",null,"Percentage time compliant during operation",null,null,null,null,null,null,null,null,"Notes:"]
[null,null,"Half-hourly limit",null,null,"Daily limit",null,null,null,null,null,"Report to 2 decimal places, i.e. xx.xx%. \n\nPlease provide a brief summary of each notification or non-compliance in the table (rather than just referring to notifications that were sent to the Regulator).  \n\n"]
["Particulates",null,100,null,null,100]
["Oxides of nitrogen",null,98.29,null,null,100]
["Sulphur dioxide",null,99,null,null,100]
["Carbon monoxide",null,97.83,null,null,99.7]
["Total organic carbon",null,98.9,null,null,100]
["Hydrogen chloride",null,100,null,null,100]
["Hydrogen fluoride",null,"n/a",null,null,"n/a"]
["Ammonia",null,"n/a",null,null,100]
[]
["Summary of any notifications or non-compliances under the permit"]
["Date","Summary of notification or non-compliance [including Line/Reference]",null,null,"Reason ",null,null,"Measures taken to prevent reoccurrence"]
["2022-01-08","NOx limit exceedence ",null,null,"Ammonia crystalisation caused SCR failure and NOx breach.",null,null,"Regular cleaning of injector nozzles"]
["2022-04-18","CO limit exceedence",null,null,"RDF Fuel blockage and burner failure. Unable to maintain furnace temeperature.",null,null,"Regular chute checks and burner maintenance"]
["2022-05-03","CO limit exceedence",null,null,"Unable to feed RDF due to feed conveyor issue creating unstable conditions.",null,null,"Investigation into Feeder conveyor failures. Planned maintenance"]
["2022-05-26","CO limit exceedence",null,null,"Boiler on shutdown, not feeding at the time.",null,null,"Review and update CEMS recording criteria when in shutdown mode."]
["2022-06-03","CO and TOC half hour limit exceedence.",null,null,"CEMS still reporting after shutdown criteria met. No RDF feeding at the time.",null,null,"Review and update CEMS recording criteria when in shutdown mode."]
["2022-06-19","CO and NH3 daily limit exceedences",null,null,"Excess Ammonia in system on start up creating Ammonia slip. CO exceedence when feed stopped due to Ammonia situation",null,null,"Further investigation required due to Ammonia saturation on start up."]
["2022-07-11","CO half hour limit exceedence",null,null,"Boiler in shutdown condition, no fuel feeding. CEMS remained in reporting condition.",null,null,"Investigation into shutdown criteria for the CEMS to come off reporting."]
["2022-09-24","CO half hour limit exceedence",null,null,"CEMS still reporting after shutdown criteria met. No RDF feeding at the time.",null,null,"Investigation into shutdown criteria for the CEMS to come off reporting."]
["2022-10-29","CO and TOC daily limit exceedence",null,null,"CEMS still reporting after shutdown criteria met. No RDF feeding at the time.",null,null,"Further Investigation into shutdown criteria for the CEMS to come off reporting."]
["2022-10-30","CO and TOC daily limit exceedence",null,null,"CEMS still reporting after shutdown criteria met. No RDF feeding at the time.",null,null,"Further Investigation into shutdown criteria for the CEMS to come off reporting."]
["2022-11-02","Daily and half hour SO2 limit exceedence.",null,null,"High moisture fuel used on start up. Difficulty maintaining furnace temperature at end of start up phase.",null,null,"Ensure fuel quality is optimised for starting a cold boiler. "]
["2022-11-06","Daily CO and TOC limit exceedence.",null,null,"CEMS still reporting after shutdown criteria met. No RDF feeding at the time.",null,null,"Further Investigation into shutdown criteria for the CEMS to come off reporting."]
["2022-12-13","Half hour Nox limit exceedence",null,null,"Low ambient temperature had frozen and compromised air supply to SCR system",null,null,"Defrosted line re-established air supply and normal SCR system. Lagged and trace heating applied."]
[]
["Summary of any complaints received and actions to taken to resolve them."]
["Date","Summary of complaint [including Line/Reference]",null,null,"Reason *",null,null,"Measures taken to prevent reoccurrence"]
[]
[]
[]
[]
[]
[null,null,null,null,"* including whether substantiated by the operator or the EA"]

{"sheet":"Improvements","index":10,"n_rows":39,"n_cols":5,"rows_kept":39,"cut":false,"hidden":false,"merged":[[37,0,37,9],[38,0,47,9],[4,0,4,9],[5,0,13,9],[15,0,15,9],[16,0,24,9],[26,0,26,9],[27,0,35,9]]}
[{"$f":"+'Cover Page'!$B$29","v":"Annual Performance Report 2022"},null,null,null,{"$f":"+'Cover Page'!$B$33","v":"Baddesley EfW Facility"}]
[]
["Summary of Plant Improvements"]
[]
["Summary of any efficiency improvements that have been completed within the year."]
["N/A"]
[]
[]
[]
[]
[]
[]
[]
[]
[]
["Summary of any permit improvement conditions that have been completed within the year and the resulting environmental benefits."]
["Progress made with IC5, due for submission 2023."]
[]
[]
[]
[]
[]
[]
[]
[]
[]
["Summary of any changes to the plant or operating techniques which required a variation to the permit and a summary of the resulting environmental impact."]
["N/A"]
[]
[]
[]
[]
[]
[]
[]
[]
[]
["Summary of any other improvements made to the plant or planned to be made and a summary of the resulting environmental benefits."]
["N/A"]

{"sheet":"Public Liasion","index":11,"n_rows":29,"n_cols":5,"rows_kept":29,"cut":false,"hidden":false,"merged":[[23,0,24,1],[23,2,24,9],[25,0,26,1],[25,2,26,9],[28,0,28,9],[17,0,18,1],[17,2,18,9],[19,0,20,1],[19,2,20,9],[21,0,22,1],[21,2,22,9],[16,0,16,1],[16,2,16,9],[5,0,5,1],[5,2,5,9],[6,0,7,1],[6,2,7,9],[8,0,9,1],[8,2,9,9],[10,0,11,1],[10,2,11,9],[12,0,13,1],[12,2,13,9],[15,0,15,9]]}
[{"$f":"+'Cover Page'!$B$29","v":"Annual Performance Report 2022"},null,null,null,{"$f":"+'Cover Page'!$B$33","v":"Baddesley EfW Facility"}]
[]
["Details of Public & Stakeholder Liasion"]
[]
["Summary of events held during the reporting year."]
["Date",null,"Description"]
[]
[]
[]
[]
[]
[]
[]
[]
[]
["List of events planned for next year"]
["Date",null,"Description"]
[]
[]
[]
[]
[]
[]
[]
[]
[]
[]
[]
["If you wish to be involved in the public liasion programme, please contact _________________"]

{"sheet":"Residue Quality ","index":12,"n_rows":40,"n_cols":6,"rows_kept":40,"cut":false,"hidden":false,"merged":[[39,0,44,6],[36,3,36,4],[38,0,38,6],[31,0,32,1],[33,0,33,1],[34,0,34,1],[35,0,35,1],[36,0,36,1],[33,3,33,4],[34,3,34,4],[33,5,33,6],[34,5,34,6],[35,5,35,6],[36,5,36,6],[24,0,25,1],[24,2,25,6],[26,0,27,1],[26,2,27,6],[35,3,35,4],[31,2,32,2],[32,3,32,4],[32,5,32,6],[31,3,31,6],[30,0,30,6],[5,0,6,6],[7,0,8,6],[9,0,10,6],[14,0,15,1],[14,2,15,6],[16,0,17,1],[16,2,17,6],[22,0,23,1],[22,2,23,6],[12,0,12,6],[13,0,13,1],[13,2,13,6],[18,0,19,1],[18,2,19,6],[20,0,21,1],[20,2,21,6]]}
[{"$f":"+'Cover Page'!$B$29","v":"Annual Performance Report 2022"},null,null,null,{"$f":"+'Cover Page'!$B$33","v":"Baddesley EfW Facility"}]
[]
["Residue Quality Monitoring Requirements"]
[]
["Summary of monitoring undertaken and compliance"]
["Permit compliance monitoring of IBA, Boiler Ash (BA), Skimmer residue (FGTS) and APCr is conducted monthly in the first year of operation, then quarterly from October 2022."]
[]
["Hazardous property assessment of IBA conducted twice a month. It is currently subject to ESA Protocol."]
[]
[]
[]
[]
["Commentary on any specific events"]
["Date & Event",null,"Description"]
["2022-10-01",null,"Reduced compliance monitoring of IBA, Boiler Ash (BA), Skimmer residue (FGTS) and APCr to quarterly."]
[]
["11/11/2022-26/11/2022",null,"Planned outage waste volumes reduced. No ash discharged from site therefore 2nd monthly ESA compliance monitoring not carried out. Ref email WRC 23/11/2022."]
[]
[]
[]
[]
[]
[]
[]
[]
[]
[]
[]
[]
[]
["Residue Quality Monitoring Results"]
["Parameter (unit) ",null,"Limit","Normal Operation "]
[null,null,null,"Bottom ash  ",null,"APC Residues"]
["Loss on Ignition (average %)",null,"<5%","2.0 max"]
["Total Organic Carbon (average %)",null,"<3%","0.31 max"]
["No. of Assessments Undertaken",null,"---",22,null,10]
["No. of Hazardous Results",null,"---",0]
[]
["Comments :"]
["No sample taken in November as reduced days of feeding with maintenance shutdown. Residue sample frequency now quarterly from October 2022."]

{"sheet":"Water","index":13,"n_rows":34,"n_cols":10,"rows_kept":34,"cut":false,"hidden":false,"merged":[[33,0,33,2],[30,0,30,2],[31,0,31,2],[32,0,32,2],[27,3,33,5],[27,0,27,2],[28,0,28,2],[29,0,29,2],[25,0,25,9],[26,0,26,2],[26,3,26,5],[14,0,15,1],[14,2,15,9],[20,0,21,1],[20,2,21,9],[22,0,23,1],[22,2,23,9],[18,0,19,1],[18,2,19,9],[16,0,17,1],[16,2,17,9],[5,0,6,9],[7,0,8,9],[9,0,10,9],[12,0,12,9],[13,0,13,1],[13,2,13,9]]}
[{"$f":"+'Cover Page'!$B$29","v":"Annual Performance Report 2022"},null,null,null,{"$f":"+'Cover Page'!$B$33","v":"Baddesley EfW Facility"}]
[]
["Emissions to Water"]
[]
["Summary of monitoring undertaken and compliance"]
["Trade Effluent is monitored by Severn Trent Water. There are no specific monitoring requirements in the Permit."]
[]
["Severn Trent Water monitoring reports are available to review upon request."]
[]
[]
[]
[]
["Commentary on any specific events"]
["Date & Event",null,"Description"]
[]
[]
[]
[]
[]
[]
[]
[]
[]
[]
[]
["Emissions to Water / Sewer"]
["Parameter",null,null,"Monitoring Frequency",null,null,"Limit","Target","Max.","Average"]
["pH",null,null,null,null,null,"6-10","n/a"]
["Suspended solids",null,null,null,null,null,"600 mg/ltr","n/a"]
["Chemical Oxygen Demand",null,null,null,null,null,"600 mg/ltr","n/a"]
["Sulphate",null,null,null,null,null,"1000 mg/ltr","n/a"]
["Chloride",null,null,null,null,null,"2000 mg/ltr","n/a"]
["Total Copper",null,null,null,null,null,"2.5 mg/ltr","n/a"]
["Total Phosphorus",null,null,null,null,null,"25 mg/ltr","n/a"]

{"sheet":"Air (periodic)","index":14,"n_rows":40,"n_cols":24,"rows_kept":40,"cut":false,"hidden":false,"merged":[[30,17,30,18],[24,17,24,18],[26,17,26,18],[27,17,27,18],[37,17,37,18],[33,17,33,18],[35,17,35,18],[36,17,36,18],[31,17,31,18],[32,17,32,18],[34,17,34,18],[22,17,22,18],[23,17,23,18],[29,17,29,18],[19,17,19,18],[20,17,20,18],[21,17,21,18],[28,17,28,18],[25,17,25,18],[16,17,16,18],[17,17,17,18],[18,17,18,18],[13,17,13,18],[14,17,14,18],[15,17,15,18],[11,17,11,18],[12,17,12,18],[18,3,18,4],[27,3,27,4],[34,3,34,4],[19,3,19,4],[20,3,20,4],[21,3,21,4],[22,3,22,4],[23,3,23,4],[29,3,29,4],[31,3,31,4],[24,3,24,4],[26,3,26,4],[28,3,28,4],[13,3,13,4],[14,3,14,4],[15,3,15,4],[16,3,16,4],[17,3,17,4],[38,0,38,9],[19,0,19,1],[20,0,20,1],[21,0,21,1],[33,3,33,4],[35,3,35,4],[34,0,34,1],[33,0,33,1],[35,0,35,1],[36,0,36,1],[29,0,29,1],[32,3,32,4],[39,0,40,9],[24,0,24,1],[26,0,26,1],[22,0,22,1],[23,0,23,1],[37,0,37,1],[27,0,27,1],[28,0,28,1],[25,0,25,1],[30,0,30,1],[31,0,31,1],[32,0,32,1],[37,3,37,4],[25,3,25,4],[30,3,30,4],[36,3,36,4],[16,0,16,1],[17,0,17,1],[18,0,18,1],[13,0,13,1],[14,0,14,1],[15,0,15,1],[12,0,12,1],[11,3,11,4],[12,3,12,4],[9,0,10,1],[9,5,9,9],[9,3,10,4],[9,2,10,2],[5,12,8,15],[9,12,11,15],[8,0,8,9],[5,0,6,9],[11,0,11,1]]}
[{"$f":"+'Cover Page'!$B$29","v":"Annual Performance Report 2022"},null,null,null,{"$f":"+'Cover Page'!$B$33","v":"Baddesley EfW Facility"}]
[]
["Emissions to Air (periodically monitored)"]
[]
["Summary of monitoring undertaken, standards used and compliance",null,null,null,null,null,null,null,null,null,null,null,"Notes:"]
["Quarterly stack testing in first year, then Bi-annual as per the Permit. The following test methods were used PD CEN TS 17340, BS EN 14385, BS EN 13211, BS EN 1948, BS ISO 11338",null,null,null,null,null,null,null,null,null,null,null,"Template may require adjustment for any bespoke monitoring requirements of permit. "]
[]
[]
["Results of emissions to air that are periodically monitored"]
["Substance",null,"Ref. Period","Emission Limit Value",null,"Average",null,null,null,null,null,null,"User to add additional tables as necessary, depending on whether quarterly or bi-annual reporting is required for the compliance year"]
[null,null,null,null,null,"A1","A2","A3","A4","A5",null,null,null,null,null,null,null,null,null,null,"Q1","Q2","Q3","Q4"]
["Hydrogen fluoride",null,"1 hr","2 mg/m3",null,{"$f":"AVERAGE(U12:X12)","v":5.8750000000000004E-2},null,null,null,null,null,null,null,null,null,null,null,"Hydrogen fluoride",null,"1 hr",2.5999999999999999E-2,3.7999999999999999E-2,3.1E-2,0.14000000000000001]
["Cd and Th and their compounds",null,"6-8hrs","0.05 mg/m3",null,{"$f":"AVERAGE(U13:X13)","v":2.075E-3},null,null,null,null,null,null,null,null,null,null,null,"Cd and Th and their compounds",null,"6-8hrs",2E-3,2.0999999999999999E-3,2E-3,2.2000000000000001E-3]
["Hg and its compounds",null,"6-8hrs","0.05 mg/m3",null,7.6250000000000005E-4,null,null,null,null,null,null,null,null,null,null,null,"Hg and its compounds",null,"6-8hrs",7.9000000000000001E-4,1.1999999999999999E-3,5.5000000000000003E-4,5.1000000000000004E-4]
["Sb, As, Pb, Cr, Co, Cu, Mn, Ni, V and their compounds",null,"6-8hrs","0.5 mg/m3",null,5.8249999999999996E-2,null,null,null,null,null,null,null,null,null,null,null,"Sb, As, Pb, Cr, Co, Cu, Mn, Ni, V and their compounds",null,"6-8hrs",2.1999999999999999E-2,3.2000000000000001E-2,0.1,7.9000000000000001E-2]
["Dioxins & Furans (I-TEQ)",null,"6-8hrs","0.1 ng/m3",null,2.0274999999999998E-3,null,null,null,null,null,null,null,null,null,null,null,"Dioxins & Furans (I-TEQ)",null,"6-8hrs",3.0999999999999999E-3,6.0999999999999997E-4,2E-3,2.3999999999999998E-3]
["PCBs (WHO-TEQ Humans / Mammals)",null,"6-8hrs","None set ng/m3",null,5.2300000000000003E-4,null,null,null,null,null,null,null,null,null,null,null,"PCBs (WHO-TEQ Humans / Mammals)",null,"6-8hrs",1.5E-3,5.1999999999999997E-5,2.2000000000000001E-4,3.2000000000000003E-4]
["PCBs (WHO-TEQ Fish)",null,"6-8hrs","None set ng/m3",null,2.5574999999999998E-5,null,null,null,null,null,null,null,null,null,null,null,"PCBs (WHO-TEQ Fish)",null,"6-8hrs",7.1000000000000005E-5,3.3000000000000002E-6,1.1E-5,1.7E-5]
["PCBs (WHO-TEQ Birds)",null,"6-8hrs","None set ng/m3",null,1.2025E-3,null,null,null,null,null,null,null,null,null,null,null,"PCBs (WHO-TEQ Birds)",null,"6-8hrs",2.8E-3,4.6999999999999999E-4,5.5000000000000003E-4,9.8999999999999999E-4]
["Dioxins & Furans (WHO-TEQ Humans / Mammals)",null,"6-8hrs","None set ng/m3",null,1.8875000000000003E-3,null,null,null,null,null,null,null,null,null,null,null,"Dioxins & Furans (WHO-TEQ Humans / Mammals)",null,"6-8hrs",2.7000000000000001E-3,6.4999999999999997E-4,2E-3,2.2000000000000001E-3]
["Dioxins & Furans (WHO-TEQ Fish)",null,"6-8hrs","None set ng/m3",null,2.065E-3,null,null,null,null,null,null,null,null,null,null,null,"Dioxins & Furans (WHO-TEQ Fish)",null,"6-8hrs",3.0000000000000001E-3,5.5999999999999995E-4,2.3E-3,2.3999999999999998E-3]
["Dioxins & Furans (WHO-TEQ Birds)",null,"6-8hrs","None set ng/m3",null,4.4749999999999998E-3,null,null,null,null,null,null,null,null,null,null,null,"Dioxins & Furans (WHO-TEQ Birds)",null,"6-8hrs",8.3000000000000001E-3,8.9999999999999998E-4,4.4000000000000003E-3,4.3E-3]
["Anthanthrene",null,"6-8hrs","None set µg/m3",null,3.1250000000000002E-3,null,null,null,null,null,null,null,null,null,null,null,"Anthanthrene",null,"6-8hrs",1.6999999999999999E-3,7.6E-3,1.6000000000000001E-3,1.6000000000000001E-3]
["Benzo(a)anthracene",null,"6-8hrs","None set µg/m3",null,1.5975E-2,null,null,null,null,null,null,null,null,null,null,null,"Benzo(a)anthracene",null,"6-8hrs",2.7000000000000001E-3,5.8000000000000003E-2,1.6000000000000001E-3,1.6000000000000001E-3]
["Benzo(b)fluoranthene",null,"6-8hrs","None set µg/m3",null,3.3749999999999995E-2,null,null,null,null,null,null,null,null,null,null,null,"Benzo(b)fluoranthene",null,"6-8hrs",1.8E-3,0.13,1.6000000000000001E-3,1.6000000000000001E-3]
["Benzo(k)fluoranthene",null,"6-8hrs","None set µg/m3",null,1.5975E-2,null,null,null,null,null,null,null,null,null,null,null,"Benzo(k)fluoranthene",null,"6-8hrs",1.6999999999999999E-3,5.8999999999999997E-2,1.6000000000000001E-3,1.6000000000000001E-3]
["Benzo(b)naptho(2,1-d) thiophene",null,"6-8hrs","None set µg/m3",null,1.6249999999999999E-3,null,null,null,null,null,null,null,null,null,null,null,"Benzo(b)naptho(2,1-d) thiophene",null,"6-8hrs",1.6999999999999999E-3,1.6000000000000001E-3,1.6000000000000001E-3,1.6000000000000001E-3]
["Benzo(c)phenanthrene",null,"6-8hrs","None set µg/m3",null,2.4000000000000002E-3,null,null,null,null,null,null,null,null,null,null,null,"Benzo(c)phenanthrene",null,"6-8hrs",1.6999999999999999E-3,4.7000000000000002E-3,1.6000000000000001E-3,1.6000000000000001E-3]
["Benzo(ghi)perylene",null,"6-8hrs","None set µg/m3",null,3.005E-2,null,null,null,null,null,null,null,null,null,null,null,"Benzo(ghi)perylene",null,"6-8hrs",4.8999999999999998E-3,0.11,3.7000000000000002E-3,1.6000000000000001E-3]
["Benzo(a)pyrene",null,"6-8hrs","None set µg/m3",null,4.1349999999999998E-2,null,null,null,null,null,null,null,null,null,null,null,"Benzo(a)pyrene",null,"6-8hrs",2.2000000000000001E-3,0.16,1.6000000000000001E-3,1.6000000000000001E-3]
["Cholanthrene",null,"6-8hrs","None set µg/m3",null,1.6249999999999999E-3,null,null,null,null,null,null,null,null,null,null,null,"Cholanthrene",null,"6-8hrs",1.6999999999999999E-3,1.6000000000000001E-3,1.6000000000000001E-3,1.6000000000000001E-3]
["Chrysene",null,"6-8hrs","None set µg/m3",null,2.0650000000000002E-2,null,null,null,null,null,null,null,null,null,null,null,"Chrysene",null,"6-8hrs",3.3999999999999998E-3,7.5999999999999998E-2,1.6000000000000001E-3,1.6000000000000001E-3]
["Cyclopenta(cd)pyrene",null,"6-8hrs","None set µg/m3",null,4.3725E-2,null,null,null,null,null,null,null,null,null,null,null,"Cyclopenta(cd)pyrene",null,"6-8hrs",1.6999999999999999E-3,0.17,1.6000000000000001E-3,1.6000000000000001E-3]
["Dibenzo(ah)anthracene",null,"6-8hrs","None set µg/m3",null,1.6249999999999999E-3,null,null,null,null,null,null,null,null,null,null,null,"Dibenzo(ah)anthracene",null,"6-8hrs",1.6999999999999999E-3,1.6000000000000001E-3,1.6000000000000001E-3,1.6000000000000001E-3]
["Dibenzo(ai)pyrene",null,"6-8hrs","None set µg/m3",null,1.6249999999999999E-3,null,null,null,null,null,null,null,null,null,null,null,"Dibenzo(ai)pyrene",null,"6-8hrs",1.6999999999999999E-3,1.6000000000000001E-3,1.6000000000000001E-3,1.6000000000000001E-3]
["Fluoranthene",null,"6-8hrs","None set µg/m3",null,8.3750000000000019E-2,null,null,null,null,null,null,null,null,null,null,null,"Fluoranthene",null,"6-8hrs",0.17,0.12,3.5000000000000003E-2,0.01]
["Indeno(123-cd) pyrene",null,"6-8hrs","None set µg/m3",null,1.4724999999999999E-2,null,null,null,null,null,null,null,null,null,null,null,"Indeno(123-cd) pyrene",null,"6-8hrs",1.6999999999999999E-3,5.3999999999999999E-2,1.6000000000000001E-3,1.6000000000000001E-3]
["Naphthalene",null,"6-8hrs","None set µg/m3",null,0.24299999999999999,null,null,null,null,null,null,null,null,null,null,null,"Naphthalene",null,"6-8hrs",0.62,0.11,0.21,3.2000000000000001E-2]
["Comments :"]
["Where < values have been reported in monitoring results, upper value has been presented to allow averaging of results. Where multiple results recorded during monitoring, highest value has been entered."]

{"sheet":"Air (CEMS)","index":15,"n_rows":29,"n_cols":16,"rows_kept":29,"cut":false,"hidden":false,"merged":[[27,0,27,12],[29,0,30,12],[13,0,14,0],[5,0,6,12],[7,0,8,12],[10,0,10,12],[11,0,12,0],[11,2,12,2],[11,1,12,1],[11,3,11,4],[11,5,11,6],[11,7,11,8],[11,9,11,10],[11,11,11,12]]}
[{"$f":"+'Cover Page'!$B$29","v":"Annual Performance Report 2022"},null,null,null,null,null,null,null,{"$f":"+'Cover Page'!$B$33","v":"Baddesley EfW Facility"}]
[]
["Emissions to Air (continously monitored)"]
[null,null,null,null,null,null,null,null,null,null,null,null,null,null,null,"Notes:"]
["Summary of monitoring undertaken, standards used and compliance",null,null,null,null,null,null,null,null,null,null,null,null,null,null,"Template may require adjustment for any bespoke monitoring requirements of permit"]
["Stack emmisions are continuously measured with 1no duty and 1no hot standby analysers MCS100FT. Particulates are continuously measured with 1no duty and 1no standby instruments Dusthunter SP100. All instruments are Mcerts certified.",null,null,null,null,null,null,null,null,null,null,null,null,null,null,"Report to 2 decimal places, i.e. xx.xx%"]
[]
[]
[]
[]
["Results of emissions to air that are continuously monitored (maximum and average values for each line)"]
["Substance","Reference Period","Emission Limit Value","A1",null,"A2",null,"A3",null,"A4",null,"A5"]
[null,null,null,"Max.","Avg.","Max.","Avg.","Max.","Avg.","Max.","Avg.","Max.","Avg."]
["Oxides of nitrogen","Daily mean","200 mg/m3 ",{"$f":"NOx!O19","v":90},{"$f":"NOx!N19","v":82.88333333333334}]
[null,"½ hourly mean","400 mg/m3 ",{"$f":"NOx!M19","v":284.60000000000002},{"$f":"NOx!L19","v":82.86666666666666}]
["Particulates","Daily mean","10 mg/m3",{"$f":"Particulates!O19","v":7.9},{"$f":"Particulates!N19","v":0.14166666666666669}]
[null,"½ hourly mean","30 mg/m3 ",{"$f":"Particulates!M19","v":12.4},{"$f":"Particulates!L19","v":0.23333333333333331}]
["Total Organic Carbon ","Daily mean","10 mg/m3 ",{"$f":"TOC!O19","v":4.3},{"$f":"TOC!N19","v":1.0166666666666666}]
[null,"½ hourly mean","20 mg/m3 ",{"$f":"TOC!M19","v":136.69999999999999},{"$f":"TOC!L19","v":1.2249999999999999}]
["Hydrogen chloride ","Daily mean","10 mg/m3 ",{"$f":"HCl!O19","v":5.6},{"$f":"HCl!N19","v":2.1833333333333331}]
[null,"½ hourly mean","60 mg/m3 ",{"$f":"HCl!M19","v":12.3},{"$f":"HCl!L19","v":2.2749999999999999}]
["Sulphur dioxide","Daily mean","50 mg/m3 ",{"$f":"'SO2'!O19","v":15},{"$f":"'SO2'!N19","v":4.666666666666667}]
[null,"½ hourly mean","200 mg/m3 ",{"$f":"'SO2'!M19","v":247.5},{"$f":"'SO2'!L19","v":5.5}]
["Carbon monoxide ","Daily mean","50 mg/m3 ",{"$f":"'CO 95% 10 min'!Q19","v":122},{"$f":"'CO 95% 10 min'!P19","v":16.466666666666665}]
[null,"½ hourly mean *","100 mg/m3 *",{"$f":"'CO 0.5hourly'!M19","v":3180.2},{"$f":"'CO 0.5hourly'!L19","v":8.5416666666666661}]
[null,"95%ile 10-min avg *","150 mg/m3 *",{"$f":"'CO 95% 10 min'!M19","v":25.9},{"$f":"'CO 95% 10 min'!N19","v":8.1833333333333336}]
[" Ammonia","Daily mean","No limit set",{"$f":"'NH3'!O19","v":0.4},{"$f":"'NH3'!N19","v":0.21375000000000002}]
["* = delete or amend as appropriate"]
["Comments :"]

{"sheet":"HCl","index":16,"n_rows":79,"n_cols":17,"rows_kept":79,"cut":false,"hidden":false,"merged":[[12,16,15,18],[51,9,63,9],[66,9,78,9],[4,9,4,14],[4,1,4,3],[4,4,4,6],[48,0,51,6],[47,0,47,6],[6,9,18,9],[21,9,33,9],[36,9,48,9],[3,16,7,18],[9,16,11,18]]}
[{"$f":"+'Cover Page'!$B$29","v":"Annual Performance Report 2022"},null,null,null,{"$f":"+'Cover Page'!$B$33","v":"Baddesley EfW Facility"}]
[]
["Monitoring of Hydrogen Chloride emissions",null,null,"Whole Installation",null,null,"See  Notes in Cell Q3",null,null,{"$f":"+A3","v":"Monitoring of Hydrogen Chloride emissions"},null,null,null,"Per Combustion Line",null,null,"Notes:"]
[null,null,null,null,null,null,null,null,null,null,null,null,null,null,null,null,"User to add logic to complete Whole installation, Table A5:G18. From the data in Per Combustion Line, Table J6:O79, subject to No. of lines installed"]
["mg/Nm3","1/2 Hourly Reference Periods",null,null,"Daily Reference Periods"]
[{"$f":"+'Cover Page'!C39","v":2022},"1/2 hourly HCl ELV","Monthly 1/2 hourly mean","Highest 1/2 hourly maximum","Daily HCl ELV","Monthly daily mean","Highest daily maximum",null,null,{"$f":"+A6","v":2022},"mg/Nm3","Monthly 1/2 hourly mean","Monthly 1/2 hourly maximum","Monthly daily mean","Monthly daily maximum"]
["Jan",60,{"$f":"L7","v":2.4},{"$f":"M7","v":8.1},10,{"$f":"N7","v":2.2999999999999998},{"$f":"O7","v":3},null,null,"A1","Jan",2.4,8.1,2.2999999999999998,3]
["Feb",60,2.4,7.3,10,2.5,3.3,null,null,null,"Feb",2.4,7.3,2.5,3.3]
["Mar",60,2.2999999999999998,7.5,10,2.2999999999999998,3,null,null,null,"Mar",2.2999999999999998,7.5,2.2999999999999998,3,null,"Whole Installation table A5:G18:"]
["Apr",60,2.5,5.4,10,2.5,3.5,null,null,null,"Apr",2.5,5.4,2.5,3.5,null,"Mean: for 1/2 hourly and daily periods calculate mean of values across all operational combustion lines for the month"]
["May",60,2,5,10,1.8,2.5,null,null,null,"May",2,5,1.8,2.5]
["Jun",60,1.8,6.7,10,1.8,2.7,null,null,null,"Jun",1.8,6.7,1.8,2.7]
["Jul",60,3.3,12.3,10,3.3,5.6,null,null,null,"Jul",3.3,12.3,3.3,5.6,null,"Maximum: for 1/2 hourly and daily periods use the highest value across all operational combustion lines for the month"]
["Aug",60,3.2,8,10,3.1,4.2,null,null,null,"Aug",3.2,8,3.1,4.2]
["Sep",60,2.6,9.6,10,2.7,5,null,null,null,"Sep",2.6,9.6,2.7,5]
["Oct",60,{"$f":"L16","v":1.4},{"$f":"M16","v":10.6},10,{"$f":"N16","v":1.2},{"$f":"O16","v":1.8},null,null,null,"Oct",1.4,10.6,1.2,1.8]
["Nov",60,{"$f":"L17","v":1.2},{"$f":"M17","v":3.6},10,{"$f":"N17","v":0.5},{"$f":"O17","v":1.2},null,null,null,"Nov",1.2,3.6,0.5,1.2]
["Dec",60,2.2000000000000002,5.4,10,2.2000000000000002,2.7,null,null,null,"Dec",2.2000000000000002,5.4,2.2000000000000002,2.7]
[null,null,null,null,null,null,null,null,null,null,"Annual",{"$f":"AVERAGE(L7:L18)","v":2.2749999999999999},{"$f":"MAX(M7:M18)","v":12.3},{"$f":"AVERAGE(N7:N18)","v":2.1833333333333331},{"$f":"MAX(O7:O18)","v":5.6}]
[]
[null,null,null,null,null,null,null,null,null,{"$f":"+A6","v":2022},"mg/Nm3","Monthly 1/2 hourly mean","Monthly 1/2 hourly maximum","Monthly daily mean","Monthly daily maximum"]
[null,null,null,null,null,null,null,null,null,"A2","Jan"]
[null,null,null,null,null,null,null,null,null,null,"Feb"]
[null,null,null,null,null,null,null,null,null,null,"Mar"]
[null,null,null,null,null,null,null,null,null,null,"Apr"]
[null,null,null,null,null,null,null,null,null,null,"May"]
[null,null,null,null,null,null,null,null,null,null,"Jun"]
[null,null,null,null,null,null,null,null,null,null,"Jul"]
[null,null,null,null,null,null,null,null,null,null,"Aug"]
[null,null,null,null,null,null,null,null,null,null,"Sep"]
[null,null,null,null,null,null,null,null,null,null,"Oct"]
[null,null,null,null,null,null,null,null,null,null,"Nov"]
[null,null,null,null,null,null,null,null,null,null,"Dec"]
[null,null,null,null,null,null,null,null,null,null,"Annual",{"$f":"AVERAGE(L22:L33)","v":{"$error":"#DIV/0!"}},{"$f":"MAX(M22:M33)","v":0},{"$f":"AVERAGE(N22:N33)","v":{"$error":"#DIV/0!"}},{"$f":"MAX(O22:O33)","v":0}]
[]
[null,null,null,null,null,null,null,null,null,{"$f":"+A6","v":2022},"mg/Nm3","Monthly 1/2 hourly mean","Monthly 1/2 hourly maximum","Monthly daily mean","Monthly daily maximum"]
[null,null,null,null,null,null,null,null,null,"A3","Jan"]
[null,null,null,null,null,null,null,null,null,null,"Feb"]
[null,null,null,null,null,null,null,null,null,null,"Mar"]
[null,null,null,null,null,null,null,null,null,null,"Apr"]
[null,null,null,null,null,null,null,null,null,null,"May"]
[null,null,null,null,null,null,null,null,null,null,"Jun"]
[null,null,null,null,null,null,null,null,null,null,"Jul"]
[null,null,null,null,null,null,null,null,null,null,"Aug"]
[null,null,null,null,null,null,null,null,null,null,"Sep"]
[null,null,null,null,null,null,null,null,null,null,"Oct"]
[null,null,null,null,null,null,null,null,null,null,"Nov"]
["Comments :",null,null,null,null,null,null,null,null,null,"Dec"]
[null,null,null,null,null,null,null,null,null,null,"Annual",{"$f":"AVERAGE(L37:L48)","v":{"$error":"#DIV/0!"}},{"$f":"MAX(M37:M48)","v":0},{"$f":"AVERAGE(N37:N48)","v":{"$error":"#DIV/0!"}},{"$f":"MAX(O37:O48)","v":0}]
[]
[null,null,null,null,null,null,null,null,null,{"$f":"+A6","v":2022},"mg/Nm3","Monthly 1/2 hourly mean","Monthly 1/2 hourly maximum","Monthly daily mean","Monthly daily maximum"]
[null,null,null,null,null,null,null,null,null,"A4","Jan"]
[null,null,null,null,null,null,null,null,null,null,"Feb"]
[null,null,null,null,null,null,null,null,null,null,"Mar"]
[null,null,null,null,null,null,null,null,null,null,"Apr"]
[null,null,null,null,null,null,null,null,null,null,"May"]
[null,null,null,null,null,null,null,null,null,null,"Jun"]
[null,null,null,null,null,null,null,null,null,null,"Jul"]
[null,null,null,null,null,null,null,null,null,null,"Aug"]
[null,null,null,null,null,null,null,null,null,null,"Sep"]
[null,null,null,null,null,null,null,null,null,null,"Oct"]
[null,null,null,null,null,null,null,null,null,null,"Nov"]
[null,null,null,null,null,null,null,null,null,null,"Dec"]
[null,null,null,null,null,null,null,null,null,null,"Annual",{"$f":"AVERAGE(L52:L63)","v":{"$error":"#DIV/0!"}},{"$f":"MAX(M52:M63)","v":0},{"$f":"AVERAGE(N52:N63)","v":{"$error":"#DIV/0!"}},{"$f":"MAX(O52:O63)","v":0}]
[]
[null,null,null,null,null,null,null,null,null,{"$f":"+A6","v":2022},"mg/Nm3","Monthly 1/2 hourly mean","Monthly 1/2 hourly maximum","Monthly daily mean","Monthly daily maximum"]
[null,null,null,null,null,null,null,null,null,"A5","Jan"]
[null,null,null,null,null,null,null,null,null,null,"Feb"]
[null,null,null,null,null,null,null,null,null,null,"Mar"]
[null,null,null,null,null,null,null,null,null,null,"Apr"]
[null,null,null,null,null,null,null,null,null,null,"May"]
[null,null,null,null,null,null,null,null,null,null,"Jun"]
[null,null,null,null,null,null,null,null,null,null,"Jul"]
[null,null,null,null,null,null,null,null,null,null,"Aug"]
[null,null,null,null,null,null,null,null,null,null,"Sep"]
[null,null,null,null,null,null,null,null,null,null,"Oct"]
[null,null,null,null,null,null,null,null,null,null,"Nov"]
[null,null,null,null,null,null,null,null,null,null,"Dec"]
[null,null,null,null,null,null,null,null,null,null,"Annual",{"$f":"AVERAGE(L67:L78)","v":{"$error":"#DIV/0!"}},{"$f":"MAX(M67:M78)","v":0},{"$f":"AVERAGE(N67:N78)","v":{"$error":"#DIV/0!"}},{"$f":"MAX(O67:O78)","v":0}]

{"sheet":"SO2","index":17,"n_rows":79,"n_cols":17,"rows_kept":79,"cut":false,"hidden":false,"merged":[[3,16,7,18],[9,16,11,18],[12,16,15,18],[66,9,78,9],[4,1,4,3],[4,4,4,6],[4,9,4,14],[6,9,18,9],[21,9,33,9],[36,9,48,9],[47,0,47,6],[48,0,51,6],[51,9,63,9]]}
[{"$f":"+'Cover Page'!$B$29","v":"Annual Performance Report 2022"},null,null,null,{"$f":"+'Cover Page'!$B$33","v":"Baddesley EfW Facility"}]
[]
["Monitoring of Sulphur dioxide emissions",null,null,"Whole Installation",null,null,"See  Notes in Cell Q3",null,null,{"$f":"+A3","v":"Monitoring of Sulphur dioxide emissions"},null,null,null,"Per Combustion Line",null,null,"Notes:"]
[null,null,null,null,null,null,null,null,null,null,null,null,null,null,null,null,"User to add logic to complete Whole installation, Table A5:G18. From the data in Per Combustion Line, Table J6:O79, subject to No. of lines installed"]
["mg/Nm3","1/2 Hourly Reference Periods",null,null,"Daily Reference Periods"]
[{"$f":"+'Cover Page'!C39","v":2022},"1/2 hourly SO2 ELV","Monthly 1/2 hourly mean","Highest 1/2 hourly maximum","Daily SO2 ELV","Monthly daily mean","Highest daily maximum",null,null,{"$f":"+A6","v":2022},"mg/Nm3","Monthly 1/2 hourly mean","Monthly 1/2 hourly maximum","Monthly daily mean","Monthly daily maximum"]
["Jan",200,{"$f":"L7","v":3.5},{"$f":"M7","v":35.799999999999997},50,{"$f":"N7","v":3.4},{"$f":"O7","v":4.0999999999999996},null,null,"A1","Jan",3.5,35.799999999999997,3.4,4.0999999999999996]
["Feb",200,3.6,12.1,50,{"$f":"N8","v":3.6},4.2,null,null,null,"Feb",3.6,12.1,3.6,4.2]
["Mar",200,3.3,20.3,50,3.2,4,null,null,null,"Mar",3.3,20.3,3.2,4,null,"Whole Installation table A5:G18:"]
["Apr",200,3.3,12,50,3.2,3.6,null,null,null,"Apr",3.3,12,3.2,3.6,null,"Mean: for 1/2 hourly and daily periods calculate mean of values across all operational combustion lines for the month"]
["May",200,3.8,151.9,50,3.4,3.9,null,null,null,"May",3.8,151.9,3.4,3.9]
["Jun",200,6,44.8,50,6,13,null,null,null,"Jun",6,44.8,6,13]
["Jul",200,4.3,33.799999999999997,50,4.2,8.1,null,null,null,"Jul",4.3,33.799999999999997,4.2,8.1,null,"Maximum: for 1/2 hourly and daily periods use the highest value across all operational combustion lines for the month"]
["Aug",200,5.2,116.9,50,4.4000000000000004,6.2,null,null,null,"Aug",5.2,116.9,4.4000000000000004,6.2]
["Sep",200,5.6,88.4,50,5.0999999999999996,15,null,null,null,"Sep",5.6,88.4,5.0999999999999996,15]
["Oct",200,{"$f":"L16","v":7.7},70.8,50,{"$f":"N16","v":7.7},13.2,null,null,null,"Oct",7.7,70.8,7.7,13.2]
["Nov",200,14.5,247.5,50,6.8,9.4,null,null,null,"Nov",14.5,247.5,6.8,9.4]
["Dec",200,5.2,71.5,50,5,7.6,null,null,null,"Dec",5.2,71.5,5,7.6]
[null,null,null,null,null,null,null,null,null,null,"Annual",{"$f":"AVERAGE(L7:L18)","v":5.5},{"$f":"MAX(M7:M18)","v":247.5},{"$f":"AVERAGE(N7:N18)","v":4.666666666666667},{"$f":"MAX(O7:O18)","v":15}]
[]
[null,null,null,null,null,null,null,null,null,{"$f":"+A6","v":2022},"mg/Nm3","Monthly 1/2 hourly mean","Monthly 1/2 hourly maximum","Monthly daily mean","Monthly daily maximum"]
[null,null,null,null,null,null,null,null,null,"A2","Jan"]
[null,null,null,null,null,null,null,null,null,null,"Feb"]
[null,null,null,null,null,null,null,null,null,null,"Mar"]
[null,null,null,null,null,null,null,null,null,null,"Apr"]
[null,null,null,null,null,null,null,null,null,null,"May"]
[null,null,null,null,null,null,null,null,null,null,"Jun"]
[null,null,null,null,null,null,null,null,null,null,"Jul"]
[null,null,null,null,null,null,null,null,null,null,"Aug"]
[null,null,null,null,null,null,null,null,null,null,"Sep"]
[null,null,null,null,null,null,null,null,null,null,"Oct"]
[null,null,null,null,null,null,null,null,null,null,"Nov"]
[null,null,null,null,null,null,null,null,null,null,"Dec"]
[null,null,null,null,null,null,null,null,null,null,"Annual",{"$f":"AVERAGE(L22:L33)","v":{"$error":"#DIV/0!"}},{"$f":"MAX(M22:M33)","v":0},{"$f":"AVERAGE(N22:N33)","v":{"$error":"#DIV/0!"}},{"$f":"MAX(O22:O33)","v":0}]
[]
[null,null,null,null,null,null,null,null,null,{"$f":"+A6","v":2022},"mg/Nm3","Monthly 1/2 hourly mean","Monthly 1/2 hourly maximum","Monthly daily mean","Monthly daily maximum"]
[null,null,null,null,null,null,null,null,null,"A3","Jan"]
[null,null,null,null,null,null,null,null,null,null,"Feb"]
[null,null,null,null,null,null,null,null,null,null,"Mar"]
[null,null,null,null,null,null,null,null,null,null,"Apr"]
[null,null,null,null,null,null,null,null,null,null,"May"]
[null,null,null,null,null,null,null,null,null,null,"Jun"]
[null,null,null,null,null,null,null,null,null,null,"Jul"]
[null,null,null,null,null,null,null,null,null,null,"Aug"]
[null,null,null,null,null,null,null,null,null,null,"Sep"]
[null,null,null,null,null,null,null,null,null,null,"Oct"]
[null,null,null,null,null,null,null,null,null,null,"Nov"]
["Comments :",null,null,null,null,null,null,null,null,null,"Dec"]
[null,null,null,null,null,null,null,null,null,null,"Annual",{"$f":"AVERAGE(L37:L48)","v":{"$error":"#DIV/0!"}},{"$f":"MAX(M37:M48)","v":0},{"$f":"AVERAGE(N37:N48)","v":{"$error":"#DIV/0!"}},{"$f":"MAX(O37:O48)","v":0}]
[]
[null,null,null,null,null,null,null,null,null,{"$f":"+A6","v":2022},"mg/Nm3","Monthly 1/2 hourly mean","Monthly 1/2 hourly maximum","Monthly daily mean","Monthly daily maximum"]
[null,null,null,null,null,null,null,null,null,"A4","Jan"]
[null,null,null,null,null,null,null,null,null,null,"Feb"]
[null,null,null,null,null,null,null,null,null,null,"Mar"]
[null,null,null,null,null,null,null,null,null,null,"Apr"]
[null,null,null,null,null,null,null,null,null,null,"May"]
[null,null,null,null,null,null,null,null,null,null,"Jun"]
[null,null,null,null,null,null,null,null,null,null,"Jul"]
[null,null,null,null,null,null,null,null,null,null,"Aug"]
[null,null,null,null,null,null,null,null,null,null,"Sep"]
[null,null,null,null,null,null,null,null,null,null,"Oct"]
[null,null,null,null,null,null,null,null,null,null,"Nov"]
[null,null,null,null,null,null,null,null,null,null,"Dec"]
[null,null,null,null,null,null,null,null,null,null,"Annual",{"$f":"AVERAGE(L52:L63)","v":{"$error":"#DIV/0!"}},{"$f":"MAX(M52:M63)","v":0},{"$f":"AVERAGE(N52:N63)","v":{"$error":"#DIV/0!"}},{"$f":"MAX(O52:O63)","v":0}]
[]
[null,null,null,null,null,null,null,null,null,{"$f":"+A6","v":2022},"mg/Nm3","Monthly 1/2 hourly mean","Monthly 1/2 hourly maximum","Monthly daily mean","Monthly daily maximum"]
[null,null,null,null,null,null,null,null,null,"A5","Jan"]
[null,null,null,null,null,null,null,null,null,null,"Feb"]
[null,null,null,null,null,null,null,null,null,null,"Mar"]
[null,null,null,null,null,null,null,null,null,null,"Apr"]
[null,null,null,null,null,null,null,null,null,null,"May"]
[null,null,null,null,null,null,null,null,null,null,"Jun"]
[null,null,null,null,null,null,null,null,null,null,"Jul"]
[null,null,null,null,null,null,null,null,null,null,"Aug"]
[null,null,null,null,null,null,null,null,null,null,"Sep"]
[null,null,null,null,null,null,null,null,null,null,"Oct"]
[null,null,null,null,null,null,null,null,null,null,"Nov"]
[null,null,null,null,null,null,null,null,null,null,"Dec"]
[null,null,null,null,null,null,null,null,null,null,"Annual",{"$f":"AVERAGE(L67:L78)","v":{"$error":"#DIV/0!"}},{"$f":"MAX(M67:M78)","v":0},{"$f":"AVERAGE(N67:N78)","v":{"$error":"#DIV/0!"}},{"$f":"MAX(O67:O78)","v":0}]

{"sheet":"NOx","index":18,"n_rows":79,"n_cols":17,"rows_kept":79,"cut":false,"hidden":false,"merged":[[3,16,7,18],[9,16,11,18],[12,16,15,18],[66,9,78,9],[4,1,4,3],[4,4,4,6],[4,9,4,14],[6,9,18,9],[21,9,33,9],[36,9,48,9],[47,0,47,6],[48,0,51,6],[51,9,63,9]]}
[{"$f":"+'Cover Page'!$B$29","v":"Annual Performance Report 2022"},null,null,null,{"$f":"+'Cover Page'!$B$33","v":"Baddesley EfW Facility"}]
[]
["Monitoring of Oxides of Nitrogen emissions",null,null,"Whole Installation",null,null,"See  Notes in Cell Q3",null,null,{"$f":"+A3","v":"Monitoring of Oxides of Nitrogen emissions"},null,null,null,"Per Combustion Line",null,null,"Notes:"]
[null,null,null,null,null,null,null,null,null,null,null,null,null,null,null,null,"User to add logic to complete Whole installation, Table A5:G18. From the data in Per Combustion Line, Table J6:O79, subject to No. of lines installed"]
["mg/Nm3","1/2 Hourly Reference Periods",null,null,"Daily Reference Periods"]
[{"$f":"+'Cover Page'!C39","v":2022},"1/2 hourly NOx ELV","Monthly 1/2 hourly mean","Highest 1/2 hourly maximum","Daily NOx ELV","Monthly daily mean","Highest daily maximum",null,null,{"$f":"+A6","v":2022},"mg/Nm3","Monthly 1/2 hourly mean","Monthly 1/2 hourly maximum","Monthly daily mean","Monthly daily maximum"]
["Jan",240,{"$f":"L7","v":85.3},{"$f":"M7","v":284.60000000000002},120,{"$f":"N7","v":84.9},{"$f":"O7","v":90},null,null,"A1","Jan",85.3,284.60000000000002,84.9,90]
["Feb",240,84.6,109,120,85,87,null,null,null,"Feb",84.6,109,85,87]
["Mar",240,84.4,110.6,120,84.5,88.6,null,null,null,"Mar",84.4,110.6,84.5,88.6,null,"Whole Installation table A5:G18:"]
["Apr",240,81.099999999999994,111.9,120,81,83.2,null,null,null,"Apr",81.099999999999994,111.9,81,83.2,null,"Mean: for 1/2 hourly and daily periods calculate mean of values across all operational combustion lines for the month"]
["May",240,83.3,186.8,120,83,85.2,null,null,null,"May",83.3,186.8,83,85.2]
["Jun",240,80.7,134.9,120,79.8,85.8,null,null,null,"Jun",80.7,134.9,79.8,85.8]
["Jul",240,86,129.6,120,85,88.3,null,null,null,"Jul",86,129.6,85,88.3,null,"Maximum: for 1/2 hourly and daily periods use the highest value across all operational combustion lines for the month"]
["Aug",240,82.8,146.19999999999999,120,82.7,84.4,null,null,null,"Aug",82.8,146.19999999999999,82.7,84.4]
["Sep",240,81.3,215.3,120,81.599999999999994,83.9,null,null,null,"Sep",81.3,215.3,81.599999999999994,83.9]
["Oct",240,{"$f":"L16","v":77.3},{"$f":"M16","v":103.6},120,{"$f":"N16","v":79.2},{"$f":"O16","v":81.5},null,null,null,"Oct",77.3,103.6,79.2,81.5]
["Nov",240,{"$f":"L17","v":83.7},{"$f":"M17","v":236.6},120,{"$f":"N17","v":84.4},{"$f":"O17","v":85.3},null,null,null,"Nov",83.7,236.6,84.4,85.3]
["Dec",240,83.9,258.8,120,83.5,85.6,null,null,null,"Dec",83.9,258.8,83.5,85.6]
[null,null,null,null,null,null,null,null,null,null,"Annual",{"$f":"AVERAGE(L7:L18)","v":82.86666666666666},{"$f":"MAX(M7:M18)","v":284.60000000000002},{"$f":"AVERAGE(N7:N18)","v":82.88333333333334},{"$f":"MAX(O7:O18)","v":90}]
[]
[null,null,null,null,null,null,null,null,null,{"$f":"+A6","v":2022},"mg/Nm3","Monthly 1/2 hourly mean","Monthly 1/2 hourly maximum","Monthly daily mean","Monthly daily maximum"]
[null,null,null,null,null,null,null,null,null,"A2","Jan"]
[null,null,null,null,null,null,null,null,null,null,"Feb"]
[null,null,null,null,null,null,null,null,null,null,"Mar"]
[null,null,null,null,null,null,null,null,null,null,"Apr"]
[null,null,null,null,null,null,null,null,null,null,"May"]
[null,null,null,null,null,null,null,null,null,null,"Jun"]
[null,null,null,null,null,null,null,null,null,null,"Jul"]
[null,null,null,null,null,null,null,null,null,null,"Aug"]
[null,null,null,null,null,null,null,null,null,null,"Sep"]
[null,null,null,null,null,null,null,null,null,null,"Oct"]
[null,null,null,null,null,null,null,null,null,null,"Nov"]
[null,null,null,null,null,null,null,null,null,null,"Dec"]
[null,null,null,null,null,null,null,null,null,null,"Annual",{"$f":"AVERAGE(L22:L33)","v":{"$error":"#DIV/0!"}},{"$f":"MAX(M22:M33)","v":0},{"$f":"AVERAGE(N22:N33)","v":{"$error":"#DIV/0!"}},{"$f":"MAX(O22:O33)","v":0}]
[]
[null,null,null,null,null,null,null,null,null,{"$f":"+A6","v":2022},"mg/Nm3","Monthly 1/2 hourly mean","Monthly 1/2 hourly maximum","Monthly daily mean","Monthly daily maximum"]
[null,null,null,null,null,null,null,null,null,"A3","Jan"]
[null,null,null,null,null,null,null,null,null,null,"Feb"]
[null,null,null,null,null,null,null,null,null,null,"Mar"]
[null,null,null,null,null,null,null,null,null,null,"Apr"]
[null,null,null,null,null,null,null,null,null,null,"May"]
[null,null,null,null,null,null,null,null,null,null,"Jun"]
[null,null,null,null,null,null,null,null,null,null,"Jul"]
[null,null,null,null,null,null,null,null,null,null,"Aug"]
[null,null,null,null,null,null,null,null,null,null,"Sep"]
[null,null,null,null,null,null,null,null,null,null,"Oct"]
[null,null,null,null,null,null,null,null,null,null,"Nov"]
["Comments :",null,null,null,null,null,null,null,null,null,"Dec"]
[null,null,null,null,null,null,null,null,null,null,"Annual",{"$f":"AVERAGE(L37:L48)","v":{"$error":"#DIV/0!"}},{"$f":"MAX(M37:M48)","v":0},{"$f":"AVERAGE(N37:N48)","v":{"$error":"#DIV/0!"}},{"$f":"MAX(O37:O48)","v":0}]
[]
[null,null,null,null,null,null,null,null,null,{"$f":"+A6","v":2022},"mg/Nm3","Monthly 1/2 hourly mean","Monthly 1/2 hourly maximum","Monthly daily mean","Monthly daily maximum"]
[null,null,null,null,null,null,null,null,null,"A4","Jan"]
[null,null,null,null,null,null,null,null,null,null,"Feb"]
[null,null,null,null,null,null,null,null,null,null,"Mar"]
[null,null,null,null,null,null,null,null,null,null,"Apr"]
[null,null,null,null,null,null,null,null,null,null,"May"]
[null,null,null,null,null,null,null,null,null,null,"Jun"]
[null,null,null,null,null,null,null,null,null,null,"Jul"]
[null,null,null,null,null,null,null,null,null,null,"Aug"]
[null,null,null,null,null,null,null,null,null,null,"Sep"]
[null,null,null,null,null,null,null,null,null,null,"Oct"]
[null,null,null,null,null,null,null,null,null,null,"Nov"]
[null,null,null,null,null,null,null,null,null,null,"Dec"]
[null,null,null,null,null,null,null,null,null,null,"Annual",{"$f":"AVERAGE(L52:L63)","v":{"$error":"#DIV/0!"}},{"$f":"MAX(M52:M63)","v":0},{"$f":"AVERAGE(N52:N63)","v":{"$error":"#DIV/0!"}},{"$f":"MAX(O52:O63)","v":0}]
[]
[null,null,null,null,null,null,null,null,null,{"$f":"+A6","v":2022},"mg/Nm3","Monthly 1/2 hourly mean","Monthly 1/2 hourly maximum","Monthly daily mean","Monthly daily maximum"]
[null,null,null,null,null,null,null,null,null,"A5","Jan"]
[null,null,null,null,null,null,null,null,null,null,"Feb"]
[null,null,null,null,null,null,null,null,null,null,"Mar"]
[null,null,null,null,null,null,null,null,null,null,"Apr"]
[null,null,null,null,null,null,null,null,null,null,"May"]
[null,null,null,null,null,null,null,null,null,null,"Jun"]
[null,null,null,null,null,null,null,null,null,null,"Jul"]
[null,null,null,null,null,null,null,null,null,null,"Aug"]
[null,null,null,null,null,null,null,null,null,null,"Sep"]
[null,null,null,null,null,null,null,null,null,null,"Oct"]
[null,null,null,null,null,null,null,null,null,null,"Nov"]
[null,null,null,null,null,null,null,null,null,null,"Dec"]
[null,null,null,null,null,null,null,null,null,null,"Annual",{"$f":"AVERAGE(L67:L78)","v":{"$error":"#DIV/0!"}},{"$f":"MAX(M67:M78)","v":0},{"$f":"AVERAGE(N67:N78)","v":{"$error":"#DIV/0!"}},{"$f":"MAX(O67:O78)","v":0}]

{"sheet":"TOC","index":19,"n_rows":79,"n_cols":17,"rows_kept":79,"cut":false,"hidden":false,"merged":[[3,16,7,18],[9,16,11,18],[12,16,15,18],[66,9,78,9],[4,1,4,3],[4,4,4,6],[4,9,4,14],[6,9,18,9],[21,9,33,9],[36,9,48,9],[47,0,47,6],[48,0,51,6],[51,9,63,9]]}
[{"$f":"+'Cover Page'!$B$29","v":"Annual Performance Report 2022"},null,null,null,{"$f":"+'Cover Page'!$B$33","v":"Baddesley EfW Facility"}]
[]
["Monitoring of Total organic carbon emissions",null,null,"Whole Installation",null,null,"See  Notes in Cell Q3",null,null,{"$f":"+A3","v":"Monitoring of Total organic carbon emissions"},null,null,null,"Per Combustion Line",null,null,"Notes:"]
[null,null,null,null,null,null,null,null,null,null,null,null,null,null,null,null,"User to add logic to complete Whole installation, Table A5:G18. From the data in Per Combustion Line, Table J6:O79, subject to No. of lines installed"]
["mg/Nm3","1/2 Hourly Reference Periods",null,null,"Daily Reference Periods"]
[{"$f":"+'Cover Page'!C39","v":2022},"1/2 hourly TOC ELV","Monthly 1/2 hourly mean","Highest 1/2 hourly maximum","Daily TOC ELV","Monthly daily mean","Highest daily maximum",null,null,{"$f":"+A6","v":2022},"mg/Nm3","Monthly 1/2 hourly mean","Monthly 1/2 hourly maximum","Monthly daily mean","Monthly daily maximum"]
["Jan",20,{"$f":"L7","v":1.1000000000000001},{"$f":"M7","v":2},10,{"$f":"N7","v":1.1000000000000001},{"$f":"O7","v":1.2},null,null,"A1","Jan",1.1000000000000001,2,1.1000000000000001,1.2]
["Feb",20,{"$f":"N8","v":1},1.5,10,1,1.1000000000000001,null,null,null,"Feb",1.1000000000000001,1.5,1,1.1000000000000001]
["Mar",20,1,1.5,10,0.9,1.1000000000000001,null,null,null,"Mar",1,1.5,0.9,1.1000000000000001,null,"Whole Installation table A5:G18:"]
["Apr",20,1,1.6,10,0.9,1,null,null,null,"Apr",1,1.6,0.9,1,null,"Mean: for 1/2 hourly and daily periods calculate mean of values across all operational combustion lines for the month"]
["May",20,1.1000000000000001,1.8,10,1,1.2,null,null,null,"May",1.1000000000000001,1.8,1,1.2]
["Jun",20,1.3,39.9,10,1.3,4.3,null,null,null,"Jun",1.3,39.9,1.3,4.3]
["Jul",20,1.1000000000000001,5.3,10,1.1000000000000001,1.2,null,null,null,"Jul",1.1000000000000001,5.3,1.1000000000000001,1.2,null,"Maximum: for 1/2 hourly and daily periods use the highest value across all operational combustion lines for the month"]
["Aug",20,1.1000000000000001,2.1,10,1,1.2,null,null,null,"Aug",1.1000000000000001,2.1,1,1.2]
["Sep",20,1.1000000000000001,3.2,10,1,1.1000000000000001,null,null,null,"Sep",1.1000000000000001,3.2,1,1.1000000000000001]
["Oct",20,{"$f":"L16","v":2.2999999999999998},{"$f":"M16","v":136.69999999999999},10,{"$f":"N16","v":1.1000000000000001},{"$f":"O16","v":1.2},null,null,null,"Oct",2.2999999999999998,136.69999999999999,1.1000000000000001,1.2]
["Nov",20,{"$f":"L17","v":1.3},{"$f":"M17","v":24.2},10,{"$f":"N17","v":0.7},{"$f":"O17","v":1.3},null,null,null,"Nov",1.3,24.2,0.7,1.3]
["Dec",20,1.2,1.5,10,1.1000000000000001,1.2,null,null,null,"Dec",1.2,1.5,1.1000000000000001,1.2]
[null,null,null,null,null,null,null,null,null,null,"Annual",{"$f":"AVERAGE(L7:L18)","v":1.2249999999999999},{"$f":"MAX(M7:M18)","v":136.69999999999999},{"$f":"AVERAGE(N7:N18)","v":1.0166666666666666},{"$f":"MAX(O7:O18)","v":4.3}]
[]
[null,null,null,null,null,null,null,null,null,{"$f":"+A6","v":2022},"mg/Nm3","Monthly 1/2 hourly mean","Monthly 1/2 hourly maximum","Monthly daily mean","Monthly daily maximum"]
[null,null,null,null,null,null,null,null,null,"A2","Jan"]
[null,null,null,null,null,null,null,null,null,null,"Feb"]
[null,null,null,null,null,null,null,null,null,null,"Mar"]
[null,null,null,null,null,null,null,null,null,null,"Apr"]
[null,null,null,null,null,null,null,null,null,null,"May"]
[null,null,null,null,null,null,null,null,null,null,"Jun"]
[null,null,null,null,null,null,null,null,null,null,"Jul"]
[null,null,null,null,null,null,null,null,null,null,"Aug"]
[null,null,null,null,null,null,null,null,null,null,"Sep"]
[null,null,null,null,null,null,null,null,null,null,"Oct"]
[null,null,null,null,null,null,null,null,null,null,"Nov"]
[null,null,null,null,null,null,null,null,null,null,"Dec"]
[null,null,null,null,null,null,null,null,null,null,"Annual",{"$f":"AVERAGE(L22:L33)","v":{"$error":"#DIV/0!"}},{"$f":"MAX(M22:M33)","v":0},{"$f":"AVERAGE(N22:N33)","v":{"$error":"#DIV/0!"}},{"$f":"MAX(O22:O33)","v":0}]
[]
[null,null,null,null,null,null,null,null,null,{"$f":"+A6","v":2022},"mg/Nm3","Monthly 1/2 hourly mean","Monthly 1/2 hourly maximum","Monthly daily mean","Monthly daily maximum"]
[null,null,null,null,null,null,null,null,null,"A3","Jan"]
[null,null,null,null,null,null,null,null,null,null,"Feb"]
[null,null,null,null,null,null,null,null,null,null,"Mar"]
[null,null,null,null,null,null,null,null,null,null,"Apr"]
[null,null,null,null,null,null,null,null,null,null,"May"]
[null,null,null,null,null,null,null,null,null,null,"Jun"]
[null,null,null,null,null,null,null,null,null,null,"Jul"]
[null,null,null,null,null,null,null,null,null,null,"Aug"]
[null,null,null,null,null,null,null,null,null,null,"Sep"]
[null,null,null,null,null,null,null,null,null,null,"Oct"]
[null,null,null,null,null,null,null,null,null,null,"Nov"]
["Comments :",null,null,null,null,null,null,null,null,null,"Dec"]
[null,null,null,null,null,null,null,null,null,null,"Annual",{"$f":"AVERAGE(L37:L48)","v":{"$error":"#DIV/0!"}},{"$f":"MAX(M37:M48)","v":0},{"$f":"AVERAGE(N37:N48)","v":{"$error":"#DIV/0!"}},{"$f":"MAX(O37:O48)","v":0}]
[]
[null,null,null,null,null,null,null,null,null,{"$f":"+A6","v":2022},"mg/Nm3","Monthly 1/2 hourly mean","Monthly 1/2 hourly maximum","Monthly daily mean","Monthly daily maximum"]
[null,null,null,null,null,null,null,null,null,"A4","Jan"]
[null,null,null,null,null,null,null,null,null,null,"Feb"]
[null,null,null,null,null,null,null,null,null,null,"Mar"]
[null,null,null,null,null,null,null,null,null,null,"Apr"]
[null,null,null,null,null,null,null,null,null,null,"May"]
[null,null,null,null,null,null,null,null,null,null,"Jun"]
[null,null,null,null,null,null,null,null,null,null,"Jul"]
[null,null,null,null,null,null,null,null,null,null,"Aug"]
[null,null,null,null,null,null,null,null,null,null,"Sep"]
[null,null,null,null,null,null,null,null,null,null,"Oct"]
[null,null,null,null,null,null,null,null,null,null,"Nov"]
[null,null,null,null,null,null,null,null,null,null,"Dec"]
[null,null,null,null,null,null,null,null,null,null,"Annual",{"$f":"AVERAGE(L52:L63)","v":{"$error":"#DIV/0!"}},{"$f":"MAX(M52:M63)","v":0},{"$f":"AVERAGE(N52:N63)","v":{"$error":"#DIV/0!"}},{"$f":"MAX(O52:O63)","v":0}]
[]
[null,null,null,null,null,null,null,null,null,{"$f":"+A6","v":2022},"mg/Nm3","Monthly 1/2 hourly mean","Monthly 1/2 hourly maximum","Monthly daily mean","Monthly daily maximum"]
[null,null,null,null,null,null,null,null,null,"A5","Jan"]
[null,null,null,null,null,null,null,null,null,null,"Feb"]
[null,null,null,null,null,null,null,null,null,null,"Mar"]
[null,null,null,null,null,null,null,null,null,null,"Apr"]
[null,null,null,null,null,null,null,null,null,null,"May"]
[null,null,null,null,null,null,null,null,null,null,"Jun"]
[null,null,null,null,null,null,null,null,null,null,"Jul"]
[null,null,null,null,null,null,null,null,null,null,"Aug"]
[null,null,null,null,null,null,null,null,null,null,"Sep"]
[null,null,null,null,null,null,null,null,null,null,"Oct"]
[null,null,null,null,null,null,null,null,null,null,"Nov"]
[null,null,null,null,null,null,null,null,null,null,"Dec"]
[null,null,null,null,null,null,null,null,null,null,"Annual",{"$f":"AVERAGE(L67:L78)","v":{"$error":"#DIV/0!"}},{"$f":"MAX(M67:M78)","v":0},{"$f":"AVERAGE(N67:N78)","v":{"$error":"#DIV/0!"}},{"$f":"MAX(O67:O78)","v":0}]

{"sheet":"Particulates","index":20,"n_rows":79,"n_cols":17,"rows_kept":79,"cut":false,"hidden":false,"merged":[[3,16,7,18],[9,16,11,18],[12,16,15,18],[66,9,78,9],[4,1,4,3],[4,4,4,6],[4,9,4,14],[6,9,18,9],[21,9,33,9],[36,9,48,9],[47,0,47,6],[48,0,51,6],[51,9,63,9]]}
[{"$f":"+'Cover Page'!$B$29","v":"Annual Performance Report 2022"},null,null,null,{"$f":"+'Cover Page'!$B$33","v":"Baddesley EfW Facility"}]
[]
["Monitoring of Particulate matter emissions",null,null,"Whole Installation",null,null,"See  Notes in Cell Q3",null,null,{"$f":"+A3","v":"Monitoring of Particulate matter emissions"},null,null,null,"Per Combustion Line",null,null,"Notes:"]
[null,null,null,null,null,null,null,null,null,null,null,null,null,null,null,null,"User to add logic to complete Whole installation, Table A5:G18. From the data in Per Combustion Line, Table J6:O79, subject to No. of lines installed"]
["mg/Nm3","1/2 Hourly Reference Periods",null,null,"Daily Reference Periods"]
[{"$f":"+'Cover Page'!C39","v":2022},"1/2 hourly PM ELV","Monthly 1/2 hourly mean","Highest 1/2 hourly maximum","Daily PM ELV","Monthly daily mean","Highest daily maximum",null,null,{"$f":"+A6","v":2022},"mg/Nm3","Monthly 1/2 hourly mean","Monthly 1/2 hourly maximum","Monthly daily mean","Monthly daily maximum"]
["Jan",30,{"$f":"L7","v":0.1},{"$f":"M7","v":0.3},10,{"$f":"N7","v":0},{"$f":"O7","v":0.1},null,null,"A1","Jan",0.1,0.3,0,0.1]
["Feb",30,0.1,0.5,10,0,0.2,null,null,null,"Feb",0.1,0.5,0,0.2]
["Mar",30,0.1,0.3,10,0,0.1,null,null,null,"Mar",0.1,0.3,0,0.1,null,"Whole Installation table A5:G18:"]
["Apr",30,0.1,0.2,10,0,0.1,null,null,null,"Apr",0.1,0.2,0,0.1,null,"Mean: for 1/2 hourly and daily periods calculate mean of values across all operational combustion lines for the month"]
["May",30,0.1,0.4,10,0,0.2,null,null,null,"May",0.1,0.4,0,0.2]
["Jun",30,0.4,4.0999999999999996,10,0.3,1.8,null,null,null,"Jun",0.4,4.0999999999999996,0.3,1.8]
["Jul",30,0.6,12.4,10,0.6,7.9,null,null,null,"Jul",0.6,12.4,0.6,7.9,null,"Maximum: for 1/2 hourly and daily periods use the highest value across all operational combustion lines for the month"]
["Aug",30,0.2,5.6,10,0.1,0.9,null,null,null,"Aug",0.2,5.6,0.1,0.9]
["Sep",30,0.6,10.5,10,0.5,2.2999999999999998,null,null,null,"Sep",0.6,10.5,0.5,2.2999999999999998]
["Oct",30,{"$f":"L16","v":0.1},{"$f":"M16","v":2},10,{"$f":"N16","v":0.1},{"$f":"O16","v":0.3},null,null,null,"Oct",0.1,2,0.1,0.3]
["Nov",30,{"$f":"L17","v":0.3},{"$f":"M17","v":5.0999999999999996},10,{"$f":"N17","v":0},{"$f":"O17","v":0.1},null,null,null,"Nov",0.3,5.0999999999999996,0,0.1]
["Dec",30,{"$f":"L18","v":0.1},0.8,10,0.1,0.1,null,null,null,"Dec",0.1,0.8,0.1,0.1]
[null,null,null,null,null,null,null,null,null,null,"Annual",{"$f":"AVERAGE(L7:L18)","v":0.23333333333333331},{"$f":"MAX(M7:M18)","v":12.4},{"$f":"AVERAGE(N7:N18)","v":0.14166666666666669},{"$f":"MAX(O7:O18)","v":7.9}]
[]
[null,null,null,null,null,null,null,null,null,{"$f":"+A6","v":2022},"mg/Nm3","Monthly 1/2 hourly mean","Monthly 1/2 hourly maximum","Monthly daily mean","Monthly daily maximum"]
[null,null,null,null,null,null,null,null,null,"A2","Jan"]
[null,null,null,null,null,null,null,null,null,null,"Feb"]
[null,null,null,null,null,null,null,null,null,null,"Mar"]
[null,null,null,null,null,null,null,null,null,null,"Apr"]
[null,null,null,null,null,null,null,null,null,null,"May"]
[null,null,null,null,null,null,null,null,null,null,"Jun"]
[null,null,null,null,null,null,null,null,null,null,"Jul"]
[null,null,null,null,null,null,null,null,null,null,"Aug"]
[null,null,null,null,null,null,null,null,null,null,"Sep"]
[null,null,null,null,null,null,null,null,null,null,"Oct"]
[null,null,null,null,null,null,null,null,null,null,"Nov"]
[null,null,null,null,null,null,null,null,null,null,"Dec"]
[null,null,null,null,null,null,null,null,null,null,"Annual",{"$f":"AVERAGE(L22:L33)","v":{"$error":"#DIV/0!"}},{"$f":"MAX(M22:M33)","v":0},{"$f":"AVERAGE(N22:N33)","v":{"$error":"#DIV/0!"}},{"$f":"MAX(O22:O33)","v":0}]
[]
[null,null,null,null,null,null,null,null,null,{"$f":"+A6","v":2022},"mg/Nm3","Monthly 1/2 hourly mean","Monthly 1/2 hourly maximum","Monthly daily mean","Monthly daily maximum"]
[null,null,null,null,null,null,null,null,null,"A3","Jan"]
[null,null,null,null,null,null,null,null,null,null,"Feb"]
[null,null,null,null,null,null,null,null,null,null,"Mar"]
[null,null,null,null,null,null,null,null,null,null,"Apr"]
[null,null,null,null,null,null,null,null,null,null,"May"]
[null,null,null,null,null,null,null,null,null,null,"Jun"]
[null,null,null,null,null,null,null,null,null,null,"Jul"]
[null,null,null,null,null,null,null,null,null,null,"Aug"]
[null,null,null,null,null,null,null,null,null,null,"Sep"]
[null,null,null,null,null,null,null,null,null,null,"Oct"]
[null,null,null,null,null,null,null,null,null,null,"Nov"]
["Comments :",null,null,null,null,null,null,null,null,null,"Dec"]
[null,null,null,null,null,null,null,null,null,null,"Annual",{"$f":"AVERAGE(L37:L48)","v":{"$error":"#DIV/0!"}},{"$f":"MAX(M37:M48)","v":0},{"$f":"AVERAGE(N37:N48)","v":{"$error":"#DIV/0!"}},{"$f":"MAX(O37:O48)","v":0}]
[]
[null,null,null,null,null,null,null,null,null,{"$f":"+A6","v":2022},"mg/Nm3","Monthly 1/2 hourly mean","Monthly 1/2 hourly maximum","Monthly daily mean","Monthly daily maximum"]
[null,null,null,null,null,null,null,null,null,"A4","Jan"]
[null,null,null,null,null,null,null,null,null,null,"Feb"]
[null,null,null,null,null,null,null,null,null,null,"Mar"]
[null,null,null,null,null,null,null,null,null,null,"Apr"]
[null,null,null,null,null,null,null,null,null,null,"May"]
[null,null,null,null,null,null,null,null,null,null,"Jun"]
[null,null,null,null,null,null,null,null,null,null,"Jul"]
[null,null,null,null,null,null,null,null,null,null,"Aug"]
[null,null,null,null,null,null,null,null,null,null,"Sep"]
[null,null,null,null,null,null,null,null,null,null,"Oct"]
[null,null,null,null,null,null,null,null,null,null,"Nov"]
[null,null,null,null,null,null,null,null,null,null,"Dec"]
[null,null,null,null,null,null,null,null,null,null,"Annual",{"$f":"AVERAGE(L52:L63)","v":{"$error":"#DIV/0!"}},{"$f":"MAX(M52:M63)","v":0},{"$f":"AVERAGE(N52:N63)","v":{"$error":"#DIV/0!"}},{"$f":"MAX(O52:O63)","v":0}]
[]
[null,null,null,null,null,null,null,null,null,{"$f":"+A6","v":2022},"mg/Nm3","Monthly 1/2 hourly mean","Monthly 1/2 hourly maximum","Monthly daily mean","Monthly daily maximum"]
[null,null,null,null,null,null,null,null,null,"A5","Jan"]
[null,null,null,null,null,null,null,null,null,null,"Feb"]
[null,null,null,null,null,null,null,null,null,null,"Mar"]
[null,null,null,null,null,null,null,null,null,null,"Apr"]
[null,null,null,null,null,null,null,null,null,null,"May"]
[null,null,null,null,null,null,null,null,null,null,"Jun"]
[null,null,null,null,null,null,null,null,null,null,"Jul"]
[null,null,null,null,null,null,null,null,null,null,"Aug"]
[null,null,null,null,null,null,null,null,null,null,"Sep"]
[null,null,null,null,null,null,null,null,null,null,"Oct"]
[null,null,null,null,null,null,null,null,null,null,"Nov"]
[null,null,null,null,null,null,null,null,null,null,"Dec"]
[null,null,null,null,null,null,null,null,null,null,"Annual",{"$f":"AVERAGE(L67:L78)","v":{"$error":"#DIV/0!"}},{"$f":"MAX(M67:M78)","v":0},{"$f":"AVERAGE(N67:N78)","v":{"$error":"#DIV/0!"}},{"$f":"MAX(O67:O78)","v":0}]

{"sheet":"CO 0.5hourly","index":21,"n_rows":79,"n_cols":17,"rows_kept":79,"cut":false,"hidden":false,"merged":[[3,16,7,18],[9,16,11,18],[12,16,15,18],[66,9,78,9],[4,1,4,3],[4,4,4,6],[4,9,4,14],[6,9,18,9],[21,9,33,9],[36,9,48,9],[47,0,47,6],[48,0,51,6],[51,9,63,9]]}
[{"$f":"+'Cover Page'!$B$29","v":"Annual Performance Report 2022"},null,null,null,{"$f":"+'Cover Page'!$B$33","v":"Baddesley EfW Facility"}]
[]
["Monitoring of Carbon Monoxide (half hourly)",null,null,"Whole Installation",null,null,"See  Notes in Cell Q3",null,null,{"$f":"+A3","v":"Monitoring of Carbon Monoxide (half hourly)"},null,null,null,"Per Combustion Line",null,null,"Notes:"]
[null,null,null,null,null,null,null,null,null,null,null,null,null,null,null,null,"User to add logic to complete Whole installation, Table A5:G18. From the data in Per Combustion Line, Table J6:O79, subject to No. of lines installed"]
["mg/Nm3","1/2 Hourly Reference Periods",null,null,"Daily Reference Periods"]
[{"$f":"+'Cover Page'!C39","v":2022},"1/2 hourly CO ELV","Monthly 1/2 hourly mean","Highest 1/2 hourly maximum","Daily CO ELV","Monthly daily mean","Highest daily maximum",null,null,{"$f":"+A6","v":2022},"mg/Nm3","Monthly 1/2 hourly mean","Monthly 1/2 hourly maximum","Monthly daily mean","Monthly daily maximum"]
["Jan",100,{"$f":"L7","v":2.4},{"$f":"M7","v":17.3},50,{"$f":"N7","v":2.2999999999999998},{"$f":"O7","v":5.9},null,null,"A1","Jan",2.4,17.3,2.2999999999999998,5.9]
["Feb",{"$f":"+B7","v":100},{"$f":"L8","v":3.6},14.7,{"$f":"+E7","v":50},{"$f":"N8","v":3.3},{"$f":"O8","v":4.5999999999999996},null,null,null,"Feb",3.6,14.7,3.3,4.5999999999999996]
["Mar",{"$f":"+B8","v":100},3.4,18.899999999999999,{"$f":"+E8","v":50},3.3,5.2,null,null,null,"Mar",3.4,18.899999999999999,3.3,5.2,null,"Whole Installation table A5:G18:"]
["Apr",100,2.2999999999999998,104.3,50,2.2000000000000002,3.8,null,null,null,"Apr",2.2999999999999998,104.3,2.2000000000000002,3.8,null,"Mean: for 1/2 hourly and daily periods calculate mean of values across all operational combustion lines for the month"]
["May",100,2.2000000000000002,165,50,1.7,2.2000000000000002,null,null,null,"May",2.2000000000000002,165,1.7,2.2000000000000002]
["Jun",100,15.7,2908.5,50,17,122,null,null,null,"Jun",15.7,2908.5,17,122]
["Jul",100,7.2,1212,50,6.4,9.1,null,null,null,"Jul",7.2,1212,6.4,9.1,null,"Maximum: for 1/2 hourly and daily periods use the highest value across all operational combustion lines for the month"]
["Aug",100,5.7,37.6,50,5.6,7.9,null,null,null,"Aug",5.7,37.6,5.6,7.9]
["Sep",100,5.0999999999999996,112.9,50,4.9000000000000004,7.1,null,null,null,"Sep",5.0999999999999996,112.9,4.9000000000000004,7.1]
["Oct",100,26.4,3180.2,50,4.2,6,null,null,null,"Oct",26.4,3180.2,4.2,6]
["Nov",100,20,1674.2,50,9.5,10.3,null,null,null,"Nov",20,1674.2,9.5,10.3]
["Dec",100,8.5,21.3,50,7.6,13.5,null,null,null,"Dec",8.5,21.3,7.6,13.5]
[null,null,null,null,null,null,null,null,null,null,"Annual",{"$f":"AVERAGE(L7:L18)","v":8.5416666666666661},{"$f":"MAX(M7:M18)","v":3180.2},{"$f":"AVERAGE(N7:N18)","v":5.666666666666667},{"$f":"MAX(O7:O18)","v":122}]
[]
[null,null,null,null,null,null,null,null,null,{"$f":"+A6","v":2022},"mg/Nm3","Monthly 1/2 hourly mean","Monthly 1/2 hourly maximum","Monthly daily mean","Monthly daily maximum"]
[null,null,null,null,null,null,null,null,null,"A2","Jan"]
[null,null,null,null,null,null,null,null,null,null,"Feb"]
[null,null,null,null,null,null,null,null,null,null,"Mar"]
[null,null,null,null,null,null,null,null,null,null,"Apr"]
[null,null,null,null,null,null,null,null,null,null,"May"]
[null,null,null,null,null,null,null,null,null,null,"Jun"]
[null,null,null,null,null,null,null,null,null,null,"Jul"]
[null,null,null,null,null,null,null,null,null,null,"Aug"]
[null,null,null,null,null,null,null,null,null,null,"Sep"]
[null,null,null,null,null,null,null,null,null,null,"Oct"]
[null,null,null,null,null,null,null,null,null,null,"Nov"]
[null,null,null,null,null,null,null,null,null,null,"Dec"]
[null,null,null,null,null,null,null,null,null,null,"Annual",{"$f":"AVERAGE(L22:L33)","v":{"$error":"#DIV/0!"}},{"$f":"MAX(M22:M33)","v":0},{"$f":"AVERAGE(N22:N33)","v":{"$error":"#DIV/0!"}},{"$f":"MAX(O22:O33)","v":0}]
[]
[null,null,null,null,null,null,null,null,null,{"$f":"+A6","v":2022},"mg/Nm3","Monthly 1/2 hourly mean","Monthly 1/2 hourly maximum","Monthly daily mean","Monthly daily maximum"]
[null,null,null,null,null,null,null,null,null,"A3","Jan"]
[null,null,null,null,null,null,null,null,null,null,"Feb"]
[null,null,null,null,null,null,null,null,null,null,"Mar"]
[null,null,null,null,null,null,null,null,null,null,"Apr"]
[null,null,null,null,null,null,null,null,null,null,"May"]
[null,null,null,null,null,null,null,null,null,null,"Jun"]
[null,null,null,null,null,null,null,null,null,null,"Jul"]
[null,null,null,null,null,null,null,null,null,null,"Aug"]
[null,null,null,null,null,null,null,null,null,null,"Sep"]
[null,null,null,null,null,null,null,null,null,null,"Oct"]
[null,null,null,null,null,null,null,null,null,null,"Nov"]
["Comments :",null,null,null,null,null,null,null,null,null,"Dec"]
[null,null,null,null,null,null,null,null,null,null,"Annual",{"$f":"AVERAGE(L37:L48)","v":{"$error":"#DIV/0!"}},{"$f":"MAX(M37:M48)","v":0},{"$f":"AVERAGE(N37:N48)","v":{"$error":"#DIV/0!"}},{"$f":"MAX(O37:O48)","v":0}]
[]
[null,null,null,null,null,null,null,null,null,{"$f":"+A6","v":2022},"mg/Nm3","Monthly 1/2 hourly mean","Monthly 1/2 hourly maximum","Monthly daily mean","Monthly daily maximum"]
[null,null,null,null,null,null,null,null,null,"A4","Jan"]
[null,null,null,null,null,null,null,null,null,null,"Feb"]
[null,null,null,null,null,null,null,null,null,null,"Mar"]
[null,null,null,null,null,null,null,null,null,null,"Apr"]
[null,null,null,null,null,null,null,null,null,null,"May"]
[null,null,null,null,null,null,null,null,null,null,"Jun"]
[null,null,null,null,null,null,null,null,null,null,"Jul"]
[null,null,null,null,null,null,null,null,null,null,"Aug"]
[null,null,null,null,null,null,null,null,null,null,"Sep"]
[null,null,null,null,null,null,null,null,null,null,"Oct"]
[null,null,null,null,null,null,null,null,null,null,"Nov"]
[null,null,null,null,null,null,null,null,null,null,"Dec"]
[null,null,null,null,null,null,null,null,null,null,"Annual",{"$f":"AVERAGE(L52:L63)","v":{"$error":"#DIV/0!"}},{"$f":"MAX(M52:M63)","v":0},{"$f":"AVERAGE(N52:N63)","v":{"$error":"#DIV/0!"}},{"$f":"MAX(O52:O63)","v":0}]
[]
[null,null,null,null,null,null,null,null,null,{"$f":"+A6","v":2022},"mg/Nm3","Monthly 1/2 hourly mean","Monthly 1/2 hourly maximum","Monthly daily mean","Monthly daily maximum"]
[null,null,null,null,null,null,null,null,null,"A5","Jan"]
[null,null,null,null,null,null,null,null,null,null,"Feb"]
[null,null,null,null,null,null,null,null,null,null,"Mar"]
[null,null,null,null,null,null,null,null,null,null,"Apr"]
[null,null,null,null,null,null,null,null,null,null,"May"]
[null,null,null,null,null,null,null,null,null,null,"Jun"]
[null,null,null,null,null,null,null,null,null,null,"Jul"]
[null,null,null,null,null,null,null,null,null,null,"Aug"]
[null,null,null,null,null,null,null,null,null,null,"Sep"]
[null,null,null,null,null,null,null,null,null,null,"Oct"]
[null,null,null,null,null,null,null,null,null,null,"Nov"]
[null,null,null,null,null,null,null,null,null,null,"Dec"]
[null,null,null,null,null,null,null,null,null,null,"Annual",{"$f":"AVERAGE(L67:L78)","v":{"$error":"#DIV/0!"}},{"$f":"MAX(M67:M78)","v":0},{"$f":"AVERAGE(N67:N78)","v":{"$error":"#DIV/0!"}},{"$f":"MAX(O67:O78)","v":0}]

{"sheet":"CO 95% 10 min","index":22,"n_rows":79,"n_cols":19,"rows_kept":79,"cut":false,"hidden":false,"merged":[[3,18,7,20],[9,18,11,20],[12,18,15,20],[66,10,78,10],[4,1,4,4],[4,5,4,7],[4,10,4,16],[6,10,18,10],[21,10,33,10],[36,10,48,10],[47,0,47,7],[48,0,51,7],[51,10,63,10]]}
[{"$f":"+'Cover Page'!$B$29","v":"Annual Performance Report 2022"},null,null,null,{"$f":"+'Cover Page'!$B$33","v":"Baddesley EfW Facility"}]
[]
["Monitoring of Carbon Monoxide (10-minute avg)",null,null,null,"Whole Installation",null,null,"See  Notes in Cell S3",null,{"$f":"+A3","v":"Monitoring of Carbon Monoxide (10-minute avg)"},null,null,null,null,"Per Combustion Line",null,"Notes:",null,"Notes:"]
[null,null,null,null,null,null,null,null,null,null,null,null,null,null,null,null,null,null,"User to add logic to complete Whole installation, Table A5:H18. From the data in Per Combustion Line, Table K6:Q79, subject to No. of lines installed"]
["mg/Nm3","10-minute Reference Periods",null,null,null,"Daily Reference Periods"]
[{"$f":"+'Cover Page'!C39","v":2022},"95%ile 10-min avg CO ELV","95%ile 10-min avg maximum","Monthly CO 10-min avg mean","10-min avg maximum","Daily CO ELV","Monthly daily mean","Highest daily maximum",null,null,{"$f":"+A6","v":2022},"mg/Nm3","95%ile 10-min avg maximum","Monthly CO 10-min avg mean","10-min avg maximum","Monthly daily mean","Monthly daily maximum"]
["Jan","No limit",{"$f":"M7","v":11},{"$f":"N7","v":0},{"$f":"O7","v":39},50,{"$f":"P7","v":5.9},6.1,null,null,"A1","Jan",11,0,39,5.9,6.1]
["Feb",{"$f":"+B7","v":"No limit"},{"$f":"M8","v":9.6},3.7,{"$f":"O8","v":34.700000000000003},{"$f":"+F7","v":50},4.5999999999999996,4.5999999999999996,null,null,null,"Feb",9.6,3.7,34.700000000000003,4.5999999999999996,4.5999999999999996]
["Mar",{"$f":"+B8","v":"No limit"},8.4,3.3,35.299999999999997,{"$f":"+F8","v":50},5.2,5.2,null,null,null,"Mar",8.4,3.3,35.299999999999997,5.2,5.2,null,"Whole Installation table A5:H18:"]
["Apr","No limit",7.8,2.2999999999999998,160.69999999999999,50,3.8,3.9,null,null,null,"Apr",7.8,2.2999999999999998,160.69999999999999,3.8,3.9,null,"Mean: for 10-min and daily periods use average of all operational combustion lines."]
["May","No limit",4.7,2.1,363.3,50,2.2000000000000002,2.2999999999999998,null,null,null,"May",4.7,2.1,363.3,2.2000000000000002,2.2999999999999998]
["Jun","No limit",8.4,16.899999999999999,4563.8999999999996,50,122,122,null,null,null,"Jun",8.4,16.899999999999999,4563.8999999999996,122,122]
["Jul","No limit",13.3,7.3,3082.9,50,9.1,8.8000000000000007,null,null,null,"Jul",13.3,7.3,3082.9,9.1,8.8000000000000007,null,"Maximum: for 10-min and daily periods use the highest of all operational combustion lines in any month."]
["Aug","No limit",11.6,5.7,100.6,50,7.9,7.9,null,null,null,"Aug",11.6,5.7,100.6,7.9,7.9]
["Sep","No limit",25.9,5.2,207.1,50,7.1,9.8000000000000007,null,null,null,"Sep",25.9,5.2,207.1,7.1,9.8000000000000007]
["Oct","No limit",12.3,{"$f":"N16","v":26.4},4100.6000000000004,50,{"$f":"P16","v":6},6,null,null,null,"Oct",12.3,26.4,4100.6000000000004,6,6]
["Nov","No limit",18.3,16.8,2067.5,50,10.3,10.3,null,null,null,"Nov",18.3,16.8,2067.5,10.3,10.3]
["Dec","No limit",19.899999999999999,8.5,22.6,50,13.5,13.5,null,null,null,"Dec",19.899999999999999,8.5,22.6,13.5,13.5]
[null,null,null,null,null,null,null,null,null,null,null,"Annual",{"$f":"MAX(M7:M18)","v":25.9},{"$f":"AVERAGE(N7:N18)","v":8.1833333333333336},{"$f":"MAX(O7:O18)","v":4563.8999999999996},{"$f":"AVERAGE(P7:P18)","v":16.466666666666665},{"$f":"MAX(Q7:Q18)","v":122}]
[]
[null,null,null,null,null,null,null,null,null,null,{"$f":"+A6","v":2022},"mg/Nm3","95%ile 10-min avg maximum","Monthly CO 10-min avg mean","10-min avg maximum","Monthly daily mean","Monthly daily maximum"]
[null,null,null,null,null,null,null,null,null,null,"A2","Jan"]
[null,null,null,null,null,null,null,null,null,null,null,"Feb"]
[null,null,null,null,null,null,null,null,null,null,null,"Mar"]
[null,null,null,null,null,null,null,null,null,null,null,"Apr"]
[null,null,null,null,null,null,null,null,null,null,null,"May"]
[null,null,null,null,null,null,null,null,null,null,null,"Jun"]
[null,null,null,null,null,null,null,null,null,null,null,"Jul"]
[null,null,null,null,null,null,null,null,null,null,null,"Aug"]
[null,null,null,null,null,null,null,null,null,null,null,"Sep"]
[null,null,null,null,null,null,null,null,null,null,null,"Oct"]
[null,null,null,null,null,null,null,null,null,null,null,"Nov"]
[null,null,null,null,null,null,null,null,null,null,null,"Dec"]
[null,null,null,null,null,null,null,null,null,null,null,"Annual",{"$f":"AVERAGE(M22:M33)","v":{"$error":"#DIV/0!"}},null,{"$f":"MAX(O22:O33)","v":0},{"$f":"AVERAGE(P22:P33)","v":{"$error":"#DIV/0!"}},{"$f":"MAX(Q22:Q33)","v":0}]
[]
[null,null,null,null,null,null,null,null,null,null,{"$f":"+A6","v":2022},"mg/Nm3","95%ile 10-min avg maximum","Monthly CO 10-min avg mean","10-min avg maximum","Monthly daily mean","Monthly daily maximum"]
[null,null,null,null,null,null,null,null,null,null,"A3","Jan"]
[null,null,null,null,null,null,null,null,null,null,null,"Feb"]
[null,null,null,null,null,null,null,null,null,null,null,"Mar"]
[null,null,null,null,null,null,null,null,null,null,null,"Apr"]
[null,null,null,null,null,null,null,null,null,null,null,"May"]
[null,null,null,null,null,null,null,null,null,null,null,"Jun"]
[null,null,null,null,null,null,null,null,null,null,null,"Jul"]
[null,null,null,null,null,null,null,null,null,null,null,"Aug"]
[null,null,null,null,null,null,null,null,null,null,null,"Sep"]
[null,null,null,null,null,null,null,null,null,null,null,"Oct"]
[null,null,null,null,null,null,null,null,null,null,null,"Nov"]
["Comments :",null,null,null,null,null,null,null,null,null,null,"Dec"]
["Environment Agency explanatory note: The 10-minute average ELV is based on the “95th percentile”. In this case this means that 95% of the 10 minute averages in the relevant 24-hour period (i.e. 137) must be below 150 mg/Nm3, and 5% (i.e. 7) are allowed to be any value above 150 mg/Nm3. Whilst we expect operators to minimise CO emissions at all times, it is perfectly acceptable for the value of the maximum 10-minute average to be above 150 mg/Nm3, provided the 95th percentile ELV has been met for that period. ",null,null,null,null,null,null,null,null,null,null,"Annual",{"$f":"AVERAGE(M37:M48)","v":{"$error":"#DIV/0!"}},null,{"$f":"MAX(O37:O48)","v":0},{"$f":"AVERAGE(P37:P48)","v":{"$error":"#DIV/0!"}},{"$f":"MAX(Q37:Q48)","v":0}]
[]
[null,null,null,null,null,null,null,null,null,null,{"$f":"+A6","v":2022},"mg/Nm3","95%ile 10-min avg maximum","Monthly CO 10-min avg mean","10-min avg maximum","Monthly daily mean","Monthly daily maximum"]
[null,null,null,null,null,null,null,null,null,null,"A4","Jan"]
[null,null,null,null,null,null,null,null,null,null,null,"Feb"]
[null,null,null,null,null,null,null,null,null,null,null,"Mar"]
[null,null,null,null,null,null,null,null,null,null,null,"Apr"]
[null,null,null,null,null,null,null,null,null,null,null,"May"]
[null,null,null,null,null,null,null,null,null,null,null,"Jun"]
[null,null,null,null,null,null,null,null,null,null,null,"Jul"]
[null,null,null,null,null,null,null,null,null,null,null,"Aug"]
[null,null,null,null,null,null,null,null,null,null,null,"Sep"]
[null,null,null,null,null,null,null,null,null,null,null,"Oct"]
[null,null,null,null,null,null,null,null,null,null,null,"Nov"]
[null,null,null,null,null,null,null,null,null,null,null,"Dec"]
[null,null,null,null,null,null,null,null,null,null,null,"Annual",{"$f":"AVERAGE(M52:M63)","v":{"$error":"#DIV/0!"}},null,{"$f":"MAX(O52:O63)","v":0},{"$f":"AVERAGE(P52:P63)","v":{"$error":"#DIV/0!"}},{"$f":"MAX(Q52:Q63)","v":0}]
[]
[null,null,null,null,null,null,null,null,null,null,{"$f":"+A6","v":2022},"mg/Nm3","95%ile 10-min avg maximum","Monthly CO 10-min avg mean","10-min avg maximum","Monthly daily mean","Monthly daily maximum"]
[null,null,null,null,null,null,null,null,null,null,"A5","Jan"]
[null,null,null,null,null,null,null,null,null,null,null,"Feb"]
[null,null,null,null,null,null,null,null,null,null,null,"Mar"]
[null,null,null,null,null,null,null,null,null,null,null,"Apr"]
[null,null,null,null,null,null,null,null,null,null,null,"May"]
[null,null,null,null,null,null,null,null,null,null,null,"Jun"]
[null,null,null,null,null,null,null,null,null,null,null,"Jul"]
[null,null,null,null,null,null,null,null,null,null,null,"Aug"]
[null,null,null,null,null,null,null,null,null,null,null,"Sep"]
[null,null,null,null,null,null,null,null,null,null,null,"Oct"]
[null,null,null,null,null,null,null,null,null,null,null,"Nov"]
[null,null,null,null,null,null,null,null,null,null,null,"Dec"]
[null,null,null,null,null,null,null,null,null,null,null,"Annual",{"$f":"AVERAGE(M67:M78)","v":{"$error":"#DIV/0!"}},null,{"$f":"MAX(O67:O78)","v":0},{"$f":"AVERAGE(P67:P78)","v":{"$error":"#DIV/0!"}},{"$f":"MAX(Q67:Q78)","v":0}]

{"sheet":"NH3","index":23,"n_rows":79,"n_cols":17,"rows_kept":79,"cut":false,"hidden":false,"merged":[[3,16,7,18],[9,16,11,18],[12,16,15,18],[66,9,78,9],[4,1,4,3],[4,4,4,6],[4,9,4,14],[6,9,18,9],[21,9,33,9],[36,9,48,9],[47,0,47,6],[48,0,51,6],[51,9,63,9]]}
[{"$f":"+'Cover Page'!$B$29","v":"Annual Performance Report 2022"},null,null,null,{"$f":"+'Cover Page'!$B$33","v":"Baddesley EfW Facility"}]
[]
["Monitoring of Ammnonia emissions ",null,null,"Whole Installation",null,null,"See  Notes in Cell Q3",null,null,{"$f":"+A3","v":"Monitoring of Ammnonia emissions "},null,null,null,"Per Combustion Line",null,null,"Notes:"]
[null,null,null,null,null,null,null,null,null,null,null,null,null,null,null,null,"User to add logic to complete Whole installation, Table A5:G18. From the data in Per Combustion Line, Table J6:O79, subject to No. of lines installed"]
["mg/Nm3","1/2 Hourly Reference Periods",null,null,"Daily Reference Periods"]
[{"$f":"+'Cover Page'!C39","v":2022},"1/2 hourly NH3 ELV","Monthly 1/2 hourly mean","Highest 1/2 hourly maximum","Daily NH3 ELV","Monthly daily mean","Highest daily maximum",null,null,{"$f":"+A6","v":2022},"mg/Nm3","Monthly 1/2 hourly mean","Monthly 1/2 hourly maximum","Monthly daily mean","Monthly daily maximum"]
["Jan",0,{"$f":"L7","v":0.2},{"$f":"M7","v":0.3},5.7,{"$f":"N7","v":0.19},{"$f":"O7","v":0.2},null,null,"A1","Jan",0.2,0.3,0.19,0.2]
["Feb",{"$f":"+B7","v":0},{"$f":"L8","v":0.2},{"$f":"M8","v":0.3},{"$f":"+E7","v":5.7},0.2,0.2,null,null,null,"Feb",0.2,0.3,0.2,0.2]
["Mar",{"$f":"+B8","v":0},0.3,0.7,{"$f":"+E8","v":5.7},0.26,0.4,null,null,null,"Mar",0.3,0.7,0.26,0.4,null,"Whole Installation table A5:G18:"]
["Apr",0,0.2,0.6,5.7,0.22,0.4,null,null,null,"Apr",0.2,0.6,0.22,0.4,null,"Mean: for 1/2 hourly and daily periods calculate mean of values across all operational combustion lines for the month"]
["May",0,0.2,0.6,5.7,0.21,0.3,null,null,null,"May",0.2,0.6,0.21,0.3]
["Jun",0,0.4,57.8,5.7,0.2,0.2,null,null,null,"Jun",0.4,57.8,0.2,0.2]
["Jul",0,0.2,0.3,5.7,0.2,0.2,null,null,null,"Jul",0.2,0.3,0.2,0.2,null,"Maximum: for 1/2 hourly and daily periods use the highest value across all operational combustion lines for the month"]
["Aug",0,0.2,0.6,5.7,0.21000000000000002,0.3,null,null,null,"Aug",0.2,0.6,{"$f":"((18*0.2)+0.6)/20","v":0.21000000000000002},0.3]
["Sep",0,0.2,0.8,5.7,0.20500000000000002,0.3,null,null,null,"Sep",0.2,0.8,{"$f":"((19*0.2)+0.3)/20","v":0.20500000000000002},0.3]
["Oct",0,{"$f":"L16","v":0.2},0.9,5.7,{"$f":"N16","v":0.2},0.2,null,null,null,"Oct",0.2,0.9,0.2,0.2]
["Nov",0,0.2,0.5,5.7,0.25,0.3,null,null,null,"Nov",0.2,0.5,0.25,0.3]
["Dec",0,0.2,0.8,5.7,0.22,0.4,null,null,null,"Dec",0.2,0.8,0.22,0.4]
[null,null,null,null,null,null,null,null,null,null,"Annual",{"$f":"AVERAGE(L7:L18)","v":0.22500000000000006},{"$f":"MAX(M7:M18)","v":57.8},{"$f":"AVERAGE(N7:N18)","v":0.21375000000000002},{"$f":"MAX(O7:O18)","v":0.4}]
[]
[null,null,null,null,null,null,null,null,null,{"$f":"+A6","v":2022},"mg/Nm3","Monthly 1/2 hourly mean","Monthly 1/2 hourly maximum","Monthly daily mean","Monthly daily maximum"]
[null,null,null,null,null,null,null,null,null,"A2","Jan"]
[null,null,null,null,null,null,null,null,null,null,"Feb"]
[null,null,null,null,null,null,null,null,null,null,"Mar"]
[null,null,null,null,null,null,null,null,null,null,"Apr"]
[null,null,null,null,null,null,null,null,null,null,"May"]
[null,null,null,null,null,null,null,null,null,null,"Jun"]
[null,null,null,null,null,null,null,null,null,null,"Jul"]
[null,null,null,null,null,null,null,null,null,null,"Aug"]
[null,null,null,null,null,null,null,null,null,null,"Sep"]
[null,null,null,null,null,null,null,null,null,null,"Oct"]
[null,null,null,null,null,null,null,null,null,null,"Nov"]
[null,null,null,null,null,null,null,null,null,null,"Dec"]
[null,null,null,null,null,null,null,null,null,null,"Annual",{"$f":"AVERAGE(L22:L33)","v":{"$error":"#DIV/0!"}},{"$f":"MAX(M22:M33)","v":0},{"$f":"AVERAGE(N22:N33)","v":{"$error":"#DIV/0!"}},{"$f":"MAX(O22:O33)","v":0}]
[]
[null,null,null,null,null,null,null,null,null,{"$f":"+A6","v":2022},"mg/Nm3","Monthly 1/2 hourly mean","Monthly 1/2 hourly maximum","Monthly daily mean","Monthly daily maximum"]
[null,null,null,null,null,null,null,null,null,"A3","Jan"]
[null,null,null,null,null,null,null,null,null,null,"Feb"]
[null,null,null,null,null,null,null,null,null,null,"Mar"]
[null,null,null,null,null,null,null,null,null,null,"Apr"]
[null,null,null,null,null,null,null,null,null,null,"May"]
[null,null,null,null,null,null,null,null,null,null,"Jun"]
[null,null,null,null,null,null,null,null,null,null,"Jul"]
[null,null,null,null,null,null,null,null,null,null,"Aug"]
[null,null,null,null,null,null,null,null,null,null,"Sep"]
[null,null,null,null,null,null,null,null,null,null,"Oct"]
[null,null,null,null,null,null,null,null,null,null,"Nov"]
["Comments :",null,null,null,null,null,null,null,null,null,"Dec"]
["An indicated ELV value of zero in the table above means that no ammonia limit is set in the permit.  \n",null,null,null,null,null,null,null,null,null,"Annual",{"$f":"AVERAGE(L37:L48)","v":{"$error":"#DIV/0!"}},{"$f":"MAX(M37:M48)","v":0},{"$f":"AVERAGE(N37:N48)","v":{"$error":"#DIV/0!"}},{"$f":"MAX(O37:O48)","v":0}]
[]
[null,null,null,null,null,null,null,null,null,{"$f":"+A6","v":2022},"mg/Nm3","Monthly 1/2 hourly mean","Monthly 1/2 hourly maximum","Monthly daily mean","Monthly daily maximum"]
[null,null,null,null,null,null,null,null,null,"A4","Jan"]
[null,null,null,null,null,null,null,null,null,null,"Feb"]
[null,null,null,null,null,null,null,null,null,null,"Mar"]
[null,null,null,null,null,null,null,null,null,null,"Apr"]
[null,null,null,null,null,null,null,null,null,null,"May"]
[null,null,null,null,null,null,null,null,null,null,"Jun"]
[null,null,null,null,null,null,null,null,null,null,"Jul"]
[null,null,null,null,null,null,null,null,null,null,"Aug"]
[null,null,null,null,null,null,null,null,null,null,"Sep"]
[null,null,null,null,null,null,null,null,null,null,"Oct"]
[null,null,null,null,null,null,null,null,null,null,"Nov"]
[null,null,null,null,null,null,null,null,null,null,"Dec"]
[null,null,null,null,null,null,null,null,null,null,"Annual",{"$f":"AVERAGE(L52:L63)","v":{"$error":"#DIV/0!"}},{"$f":"MAX(M52:M63)","v":0},{"$f":"AVERAGE(N52:N63)","v":{"$error":"#DIV/0!"}},{"$f":"MAX(O52:O63)","v":0}]
[]
[null,null,null,null,null,null,null,null,null,{"$f":"+A6","v":2022},"mg/Nm3","Monthly 1/2 hourly mean","Monthly 1/2 hourly maximum","Monthly daily mean","Monthly daily maximum"]
[null,null,null,null,null,null,null,null,null,"A5","Jan"]
[null,null,null,null,null,null,null,null,null,null,"Feb"]
[null,null,null,null,null,null,null,null,null,null,"Mar"]
[null,null,null,null,null,null,null,null,null,null,"Apr"]
[null,null,null,null,null,null,null,null,null,null,"May"]
[null,null,null,null,null,null,null,null,null,null,"Jun"]
[null,null,null,null,null,null,null,null,null,null,"Jul"]
[null,null,null,null,null,null,null,null,null,null,"Aug"]
[null,null,null,null,null,null,null,null,null,null,"Sep"]
[null,null,null,null,null,null,null,null,null,null,"Oct"]
[null,null,null,null,null,null,null,null,null,null,"Nov"]
[null,null,null,null,null,null,null,null,null,null,"Dec"]
[null,null,null,null,null,null,null,null,null,null,"Annual",{"$f":"AVERAGE(L67:L78)","v":{"$error":"#DIV/0!"}},{"$f":"MAX(M67:M78)","v":0},{"$f":"AVERAGE(N67:N78)","v":{"$error":"#DIV/0!"}},{"$f":"MAX(O67:O78)","v":0}]